Departmental Family,Entity,Date,Expense type,Expense area,Description,Supplier,Transaction Number,Amount
Department for Education,STANDARDS AND TESTING AGENCY,24/04/2015,Professional Services Other,Test Operations Division,"Fees / expenses of professionals, for example to implement advice or changes",EDEXCEL,4000206068,3537768.00
Department for Education,DEPARTMENT FOR EDUCATION,27/04/2015,Programme costs,Children in Care Division,Funding to deliver policies (excluding consultancy) paid to third parties via a service delivery contract,CAMBRIDGE EDUCATION HEAD OFFICE,4000206207,3500000.00
Department for Education,DEPARTMENT FOR EDUCATION,15/04/2015,ICT,Information Technology Group,ICT Software,INSIGHT DIRECT UK LIMITED,4000205255,2237742.15
Department for Education,DEPARTMENT FOR EDUCATION,30/04/2015,Programme costs,Teachers and Teaching Group,Funding to deliver policies (excluding consultancy) paid to third parties via a service delivery contract,CAPITA LIFE & PENSIONS SERVICES LTD,4000206550,2087373.26
Department for Education,DEPARTMENT FOR EDUCATION,16/04/2015,Grants,"Childcare, Special Educational Needs and Children's Strategy Group",Grants to third sector organisations / not for profit organisations and other businesses,THE FAMILY FUND TRUST,4000205467,1762573.00
Department for Education,DEPARTMENT FOR EDUCATION,08/04/2015,Grants,System Reform Group,Grants to third sector organisations / not for profit organisations and other businesses,DEPARTMENT FOR COMMUNITIES & LOCAL GOVERNMENT,4000204777,1590752.66
Department for Education,DEPARTMENT FOR EDUCATION,02/04/2015,Programme costs,Children in Care Division,Funding to deliver policies (excluding consultancy) paid to third parties via a service delivery contract,KINGS COLLEGE LONDON,4000204287,1231115.00
Department for Education,DEPARTMENT FOR EDUCATION,10/04/2015,Programme costs,Teachers and Teaching Group,Funding to deliver policies (excluding consultancy) paid to third parties via a service delivery contract,CAPITA LIFE & PENSIONS SERVICES LTD,4000204992,1000057.48
Department for Education,DEPARTMENT FOR EDUCATION,22/04/2015,Programme costs,Assessment and Curriculum and General Qualifications Group,Funding to deliver policies (excluding consultancy) paid to third parties via a service delivery contract,CFBT EDUCATION TRUST,4000205931,875307.60
Department for Education,DEPARTMENT FOR EDUCATION,22/04/2015,Grants,Families Group,Grants to local authorities outside aggregate external funding or aggregate exchequer grant,LEEDS CITY COUNCIL,4000205852,836633.00
Department for Education,DEPARTMENT FOR EDUCATION,22/04/2015,Grants,Families Group,Grants to local authorities outside aggregate external funding or aggregate exchequer grant,HERTFORDSHIRE COUNTY COUNCIL,4000205882,805136.00
Department for Education,NATIONAL COLLEGE FOR TEACHING AND LEADERSHIP AGENCY,02/04/2015,Grants,Operations Directorate,Grants to third sector organisations / not for profit organisations and other businesses,UNIVERSITY OF CUMBRIA,4000204362,785422.23
Department for Education,DEPARTMENT FOR EDUCATION,21/04/2015,Programme costs,Assessment and Curriculum and General Qualifications Group,Funding to deliver policies (excluding consultancy) paid to third parties via a service delivery contract,MATHEMATICS IN EDUCATION & INDUSTRY,4000205732,761900.00
Department for Education,DEPARTMENT FOR EDUCATION,23/04/2015,Programme costs,Assessment and Curriculum and General Qualifications Group,Funding to deliver policies (excluding consultancy) paid to third parties via a service delivery contract,MYSCIENCE CO LTD,4000205984,751665.83
Department for Education,DEPARTMENT FOR EDUCATION,16/04/2015,Funding to pay Teachers' Pensions,Teachers and Teaching Group,Pension related payments to retired teachers where liability has transferred to SoS,TPS GOVERNMENT BANKING SERVICE ACCOUNT,2001102,730504.93
Department for Education,DEPARTMENT FOR EDUCATION,23/04/2015,Grants,Assessment and Curriculum and General Qualifications Group,Grants to third sector organisations / not for profit organisations and other businesses,ENTHUSE CHARITABLE TRUST,4000205987,727000.00
Department for Education,DEPARTMENT FOR EDUCATION,21/04/2015,Professional Services Other,Families Group,"Fees / expenses of professionals, for example to implement advice or changes",DELOITTE LLP,4000205761,723052.80
Department for Education,DEPARTMENT FOR EDUCATION,16/04/2015,Communications,Information Technology Group,Digital media and web production,PROLOG,4000205404,111949.03
Department for Education,DEPARTMENT FOR EDUCATION,09/04/2015,Grants,Education Funding Group,Capital grants paid to third sector / not for profit organisation,NSPCC,4000204872,713020.56
Department for Education,DEPARTMENT FOR EDUCATION,22/04/2015,Grants,Families Group,Grants to local authorities outside aggregate external funding or aggregate exchequer grant,LONDON BOROUGH OF ISLINGTON COUNCIL,4000205849,697242.00
Department for Education,DEPARTMENT FOR EDUCATION,22/04/2015,Programme costs,Assessment and Curriculum and General Qualifications Group,Funding to deliver policies (excluding consultancy) paid to third parties via a service delivery contract,MYSCIENCE CO LTD,4000205851,634236.54
Department for Education,DEPARTMENT FOR EDUCATION,22/04/2015,Grants,Families Group,Grants to local authorities outside aggregate external funding or aggregate exchequer grant,HAMPSHIRE COUNTY COUNCIL,4000205927,620930.00
Department for Education,NATIONAL COLLEGE FOR TEACHING AND LEADERSHIP AGENCY,01/04/2015,Communications,Operations Directorate,"Publicity, advertising, media advertising campaigns (excluding recruitment adverts)",CARAT,4000204128,610040.40
Department for Education,DEPARTMENT FOR EDUCATION,22/04/2015,Grants,Families Group,Grants to local authorities outside aggregate external funding or aggregate exchequer grant,LONDON BOROUGH OF EALING COUNCIL,4000205859,606500.00
Department for Education,DEPARTMENT FOR EDUCATION,10/04/2015,Facilities,Finance and Commercial Group - Property Asset Management,Property management,MACE LTD,4000205036,588048.00
Department for Education,DEPARTMENT FOR EDUCATION,23/04/2015,Facilities,Finance and Commercial Group - Property Asset Management,Business rates,GVA GRIMLEY LTD,4000206000,583733.00
Department for Education,DEPARTMENT FOR EDUCATION,22/04/2015,Grants,Families Group,Grants to local authorities outside aggregate external funding or aggregate exchequer grant,DURHAM COUNTY COUNCIL,4000205926,568456.00
Department for Education,DEPARTMENT FOR EDUCATION,01/04/2015,Professional Services Other,Strategic Analysis and Research and Policy Impact Group,Research and evaluation activities,TNS UK LTD,4000204055,498631.00
Department for Education,DEPARTMENT FOR EDUCATION,22/04/2015,Grants,Families Group,Grants to local authorities outside aggregate external funding or aggregate exchequer grant,LONDON BOROUGH OF ENFIELD COUNCIL,4000205860,491250.00
Department for Education,DEPARTMENT FOR EDUCATION,22/04/2015,Grants,Families Group,Grants to local authorities outside aggregate external funding or aggregate exchequer grant,STOCKPORT MBC,4000205864,475448.00
Department for Education,DEPARTMENT FOR EDUCATION,22/04/2015,ICT,Information Technology Group,ICT Services,SKILLS FUNDING AGENCY,4000205946,472588.00
Department for Education,DEPARTMENT FOR EDUCATION,22/04/2015,Grants,Families Group,Grants to local authorities outside aggregate external funding or aggregate exchequer grant,LONDON BOROUGH OF HACKNEY,4000205887,467541.00
Department for Education,NATIONAL COLLEGE FOR TEACHING AND LEADERSHIP AGENCY,22/04/2015,Grants,Delivery Directorate,Grants to third sector organisations / not for profit organisations and other businesses,THE UNIVERSITY OF MANCHESTER,4000205856,462000.00
Department for Education,NATIONAL COLLEGE FOR TEACHING AND LEADERSHIP AGENCY,02/04/2015,Grants,Operations Directorate,Grants to third sector organisations / not for profit organisations and other businesses,INSTITUTE OF EDUCATION U.O.L.,4000204466,459230.00
Department for Education,NATIONAL COLLEGE FOR TEACHING AND LEADERSHIP AGENCY,30/04/2015,Professional Services Other,Operations Directorate,"Fees / expenses of professionals, for example to implement advice or changes",FUTURE LEADERS LTD,4000206583,435000.00
Department for Education,DEPARTMENT FOR EDUCATION,29/04/2015,Grants,Academies Delivery Group,Grants to third sector organisations / not for profit organisations and other businesses,TRINITY CATHOLIC COLLEGE,4000206410,429000.00
Department for Education,NATIONAL COLLEGE FOR TEACHING AND LEADERSHIP AGENCY,02/04/2015,Professional Services Other,Delivery Directorate,"Fees / expenses of professionals, for example to implement advice or changes",TEACHING LEADERS,4000204245,419676.00
Department for Education,DEPARTMENT FOR EDUCATION,22/04/2015,Grants,Families Group,Grants to local authorities outside aggregate external funding or aggregate exchequer grant,WIGAN MBC,4000205865,413895.00
Department for Education,DEPARTMENT FOR EDUCATION,10/04/2015,Professional Services Other,Strategic Analysis and Research and Policy Impact Group,Research and evaluation activities,RM EDUCATION,4000204940,412603.00
Department for Education,DEPARTMENT FOR EDUCATION,24/04/2015,Programme costs,Assessment and Curriculum and General Qualifications Group,Funding to deliver policies (excluding consultancy) paid to third parties via a service delivery contract,IOP INSTITUTE OF PHYSICS,4000206172,401280.90
Department for Education,DEPARTMENT FOR EDUCATION,22/04/2015,Grants,Families Group,Grants to local authorities outside aggregate external funding or aggregate exchequer grant,NEWCASTLE CITY COUNCIL,4000205867,395005.00
Department for Education,NATIONAL COLLEGE FOR TEACHING AND LEADERSHIP AGENCY,02/04/2015,Grants,Operations Directorate,Grants to third sector organisations / not for profit organisations and other businesses,EDGE HILL UNIVERSITY,4000204229,387520.00
Department for Education,NATIONAL COLLEGE FOR TEACHING AND LEADERSHIP AGENCY,02/04/2015,Grants,Operations Directorate,Grants to third sector organisations / not for profit organisations and other businesses,MANCHESTER METROPOLITAN UNIVERSITY,4000204494,380140.00
Department for Education,NATIONAL COLLEGE FOR TEACHING AND LEADERSHIP AGENCY,27/04/2015,Professional Services Other,Delivery Directorate,"Fees / expenses of professionals, for example to implement advice or changes",TEACHING LEADERS,4000206190,360615.00
Department for Education,DEPARTMENT FOR EDUCATION,10/04/2015,ICT,Information Technology Group,ICT Services,XMA LTD,4000205030,339097.20
Department for Education,NATIONAL COLLEGE FOR TEACHING AND LEADERSHIP AGENCY,22/04/2015,Grants,Delivery Directorate,Grants to third sector organisations / not for profit organisations and other businesses,UNIVERSITY COLLEGE LONDON,4000205908,333166.70
Department for Education,NATIONAL COLLEGE FOR TEACHING AND LEADERSHIP AGENCY,02/04/2015,Grants,Operations Directorate,Grants to third sector organisations / not for profit organisations and other businesses,UNIVERSITY OF CAMBRIDGE,4000204253,318850.00
Department for Education,NATIONAL COLLEGE FOR TEACHING AND LEADERSHIP AGENCY,02/04/2015,Grants,Operations Directorate,Grants to third sector organisations / not for profit organisations and other businesses,KINGS COLLEGE GUILDFORD,4000204345,313130.00
Department for Education,DEPARTMENT FOR EDUCATION,02/04/2015,Office Solutions,Information Technology Group,Office machines,INSIGHT DIRECT UK LIMITED,4000204545,297732.00
Department for Education,DEPARTMENT FOR EDUCATION,10/04/2015,ICT,Information Technology Group,Partial payment for IT hardware / consumables,XMA LTD,4000205030,294110.28
Department for Education,DEPARTMENT FOR EDUCATION,01/04/2015,ICT,Information Technology Group,ICT Software,LOCKHEED MARTIN,4000204129,288065.48
Department for Education,DEPARTMENT FOR EDUCATION,16/04/2015,Funding to pay Teachers' Pensions,Teachers and Teaching Group,Pension related payments to retired teachers where liability has transferred to SoS,TPS GOVERNMENT BANKING SERVICE ACCOUNT,2001103,286352.44
Department for Education,DEPARTMENT FOR EDUCATION,15/04/2015,ICT,Information Technology Group,Partial payment for IT hardware / consumables,XMA LTD,4000205235,284467.32
Department for Education,DEPARTMENT FOR EDUCATION,14/04/2015,Professional Services Other,Finance and Commercial Group,Payment under the cross-government health partnership scheme for pension contributions for individuals who undertook qualifying overseas voluntary service in 2014-15.,NATIONAL HEALTH SERVICE PENSION AGENCY,4000205211,280243.69
Department for Education,DEPARTMENT FOR EDUCATION,23/04/2015,Grants,"Childcare, Special Educational Needs and Children's Strategy Group",Grants to third sector organisations / not for profit organisations and other businesses,THE CHILDRENS PARTNERSHIP,4000206006,273616.70
Department for Education,DEPARTMENT FOR EDUCATION,21/04/2015,Professional Services Other,Finance and Commercial Group,Shared corporate accounting services,SHARED SERVICES CONNECTED LTD,4000205749,265469.60
Department for Education,DEPARTMENT FOR EDUCATION,22/04/2015,Grants,Families Group,Grants to local authorities outside aggregate external funding or aggregate exchequer grant,SHEFFIELD CITY COUNCIL,4000205853,250000.00
Department for Education,DEPARTMENT FOR EDUCATION,22/04/2015,Grants,Families Group,Grants to local authorities outside aggregate external funding or aggregate exchequer grant,TORBAY COUNCIL,4000205938,250000.00
Department for Education,NATIONAL COLLEGE FOR TEACHING AND LEADERSHIP AGENCY,02/04/2015,Grants,Operations Directorate,Grants to third sector organisations / not for profit organisations and other businesses,THE UNIVERSITY OF MANCHESTER,4000204250,249480.00
Department for Education,DEPARTMENT FOR EDUCATION,09/04/2015,ICT,Information Technology Group,ICT Services,EDUSERV,4000204912,246595.20
Department for Education,DEPARTMENT FOR EDUCATION,16/04/2015,Communications,Information Technology Group,Digital media and web production,PROLOG,4000205404,38846.54
Department for Education,DEPARTMENT FOR EDUCATION,22/04/2015,Grants,Families Group,Grants to local authorities outside aggregate external funding or aggregate exchequer grant,NORTH EAST LINCOLNSHIRE COUNCIL,4000205954,227591.00
Department for Education,DEPARTMENT FOR EDUCATION,24/04/2015,ICT,Information Technology Group,ICT Services,CAPRICORN VENTIS LTD,4000206117,222908.56
Department for Education,DEPARTMENT FOR EDUCATION,22/04/2015,Grants,Families Group,Grants to local authorities outside aggregate external funding or aggregate exchequer grant,NORTH YORKSHIRE COUNTY COUNCIL,4000205916,222873.00
Department for Education,DEPARTMENT FOR EDUCATION,22/04/2015,ICT,Information Technology Group,ICT Services,SKILLS FUNDING AGENCY,4000205946,222222.00
Department for Education,DEPARTMENT FOR EDUCATION,01/04/2015,Energy and Fuels,Finance and Commercial Group - Property Asset Management,Electricity supply,EDF ENERGY LTD,4000204054,213165.89
Department for Education,DEPARTMENT FOR EDUCATION,21/04/2015,ICT,Information Technology Group,Partial payment for IT hardware / consumables,INSIGHT DIRECT UK LIMITED,4000205844,210931.20
Department for Education,DEPARTMENT FOR EDUCATION,07/04/2015,Grants,Free School Group,Grants to third sector organisations / not for profit organisations and other businesses,CHAPEL STREET COMMUNITY SCHOOLS TRUST,4000204646,210000.00
Department for Education,NATIONAL COLLEGE FOR TEACHING AND LEADERSHIP AGENCY,02/04/2015,Grants,Operations Directorate,Grants to third sector organisations / not for profit organisations and other businesses,COLCHESTER SCHOOLS SCITT CONSORTIUM,4000204457,204652.01
Department for Education,NATIONAL COLLEGE FOR TEACHING AND LEADERSHIP AGENCY,02/04/2015,Grants,Operations Directorate,Grants to third sector organisations / not for profit organisations and other businesses,UNIVERSITY OF BIRMINGHAM,4000204586,201460.00
Department for Education,NATIONAL COLLEGE FOR TEACHING AND LEADERSHIP AGENCY,30/04/2015,Programme costs,Delivery Directorate,Funding to deliver policies (excluding consultancy) paid to third parties via a service delivery contract,SELT,4000206541,200113.41
Department for Education,DEPARTMENT FOR EDUCATION,22/04/2015,Grants,Families Group,Grants to local authorities outside aggregate external funding or aggregate exchequer grant,CHESHIRE EAST COUNCIL,4000205928,199134.00
Department for Education,NATIONAL COLLEGE FOR TEACHING AND LEADERSHIP AGENCY,02/04/2015,Professional Services Other,Delivery Directorate,"Fees / expenses of professionals, for example to implement advice or changes",MM TELEPERFORMANCE,4000204437,198730.10
Department for Education,NATIONAL COLLEGE FOR TEACHING AND LEADERSHIP AGENCY,02/04/2015,Grants,Operations Directorate,Grants to third sector organisations / not for profit organisations and other businesses,UNIVERSITY OF NOTTINGHAM,4000204448,197350.00
Department for Education,NATIONAL COLLEGE FOR TEACHING AND LEADERSHIP AGENCY,02/04/2015,Grants,Operations Directorate,Grants to third sector organisations / not for profit organisations and other businesses,UNIVERSITY OF EAST LONDON,4000204240,196960.00
Department for Education,NATIONAL COLLEGE FOR TEACHING AND LEADERSHIP AGENCY,02/04/2015,Grants,Operations Directorate,Grants to third sector organisations / not for profit organisations and other businesses,SHEFFIELD HALLAM UNIVERSITY,4000204476,196660.00
Department for Education,NATIONAL COLLEGE FOR TEACHING AND LEADERSHIP AGENCY,02/04/2015,Grants,Operations Directorate,Grants to third sector organisations / not for profit organisations and other businesses,BATH SPA UNIVERSITY,4000204505,196280.00
Department for Education,DEPARTMENT FOR EDUCATION,09/04/2015,Grants,Assessment and Curriculum and General Qualifications Group,Grants to third sector organisations / not for profit organisations and other businesses,NATIONAL SOCIETY C OF E,4000204921,193100.00
Department for Education,DEPARTMENT FOR EDUCATION,07/04/2015,Grants,Academies Delivery Group,Grants to third sector organisations / not for profit organisations and other businesses,WEST SOMERSET ACADEMIES TRUST,4000204684,187000.00
Department for Education,DEPARTMENT FOR EDUCATION,22/04/2015,Grants,Families Group,Grants to local authorities outside aggregate external funding or aggregate exchequer grant,SURREY COUNTY COUNCIL,4000205963,179250.00
Department for Education,NATIONAL COLLEGE FOR TEACHING AND LEADERSHIP AGENCY,02/04/2015,Grants,Operations Directorate,Grants to third sector organisations / not for profit organisations and other businesses,UNIVERSITY OF EAST ANGLIA,4000204314,179200.00
Department for Education,DEPARTMENT FOR EDUCATION,22/04/2015,Grants,Families Group,Grants to local authorities outside aggregate external funding or aggregate exchequer grant,SEFTON COUNCIL,4000205863,179000.00
Department for Education,NATIONAL COLLEGE FOR TEACHING AND LEADERSHIP AGENCY,02/04/2015,Grants,Operations Directorate,Grants to third sector organisations / not for profit organisations and other businesses,CANTERBURY CHRIST CHURCH UNIVERSITY,4000204570,178780.00
Department for Education,DEPARTMENT FOR EDUCATION,14/04/2015,Programme costs,Children in Care Division,Funding to deliver policies (excluding consultancy) paid to third parties via a service delivery contract,BRITISH ASSOCIATION FOR ADOPTION & FOSTERING,4000205196,177655.02
Department for Education,DEPARTMENT FOR EDUCATION,28/04/2015,Programme costs,Assessment and Curriculum and General Qualifications Group,Funding to deliver policies (excluding consultancy) paid to third parties via a service delivery contract,TRIBAL EDUCATION LIMITED,4000206265,175342.80
Department for Education,DEPARTMENT FOR EDUCATION,24/04/2015,Grants,Academies Delivery Group,Grants to third sector organisations / not for profit organisations and other businesses,ST MARKS CE VA PRIMARY SCHOOL BCAP,4000206063,175000.00
Department for Education,NATIONAL COLLEGE FOR TEACHING AND LEADERSHIP AGENCY,02/04/2015,Grants,Operations Directorate,Grants to third sector organisations / not for profit organisations and other businesses,UNIVERSITY OF EXETER,4000204207,173890.00
Department for Education,DEPARTMENT FOR EDUCATION,16/04/2015,Programme costs,"Childcare, Special Educational Needs and Children's Strategy Group",Funding to deliver policies (excluding consultancy) paid to third parties via a service delivery contract,KENT COUNTY COUNCIL,4000205358,169625.00
Department for Education,DEPARTMENT FOR EDUCATION,02/04/2015,Facilities,Finance and Commercial Group - Property Asset Management,Property management,METHODS CONSULTING LTD,4000204421,169326.48
Department for Education,NATIONAL COLLEGE FOR TEACHING AND LEADERSHIP AGENCY,02/04/2015,Grants,Operations Directorate,Grants to third sector organisations / not for profit organisations and other businesses,UNIVERSITY OF ROEHAMPTON,4000204367,168520.00
Department for Education,DEPARTMENT FOR EDUCATION,08/04/2015,Grants,Education Funding Group,Grants to third sector organisations / not for profit organisations and other businesses,LOCAL PARTNERSHIPS LLP,4000204852,166000.00
Department for Education,DEPARTMENT FOR EDUCATION,07/04/2015,Grants,Academies Delivery Group,Capital grants paid to a private sector organisation,THE COLOMA TRUST,4000204693,163000.00
Department for Education,DEPARTMENT FOR EDUCATION,30/04/2015,Grants,System Reform Group,Grants to third sector organisations / not for profit organisations and other businesses,SCHOOL GOVERNORS ONE STOP SHOP,4000206535,162600.00
Department for Education,DEPARTMENT FOR EDUCATION,09/04/2015,Grants,"Childcare, Special Educational Needs and Children's Strategy Group",Grants to third sector organisations / not for profit organisations and other businesses,BARNARDOS,4000204909,161935.81
Department for Education,DEPARTMENT FOR EDUCATION,10/04/2015,Programme costs,Families Group,Funding to deliver policies (excluding consultancy) paid to third parties via a service delivery contract,CARERS TRUST,4000205016,159824.15
Department for Education,NATIONAL COLLEGE FOR TEACHING AND LEADERSHIP AGENCY,02/04/2015,Grants,Operations Directorate,Grants to third sector organisations / not for profit organisations and other businesses,UNIVERSITY OF CHESTER,4000204365,156650.00
Department for Education,DEPARTMENT FOR EDUCATION,20/04/2015,Grants,Free School Group,Grants to third sector organisations / not for profit organisations and other businesses,TAUHEEDUL ISLAM BOYS HIGH SCHOOL,4000205692,156000.00
Department for Education,NATIONAL COLLEGE FOR TEACHING AND LEADERSHIP AGENCY,02/04/2015,Grants,Operations Directorate,Grants to third sector organisations / not for profit organisations and other businesses,UNIVERSITY OF BRISTOL,4000204351,155650.00
Department for Education,NATIONAL COLLEGE FOR TEACHING AND LEADERSHIP AGENCY,02/04/2015,Grants,Operations Directorate,Grants to third sector organisations / not for profit organisations and other businesses,UNIVERSITY OF WORCESTER,4000204288,154420.00
Department for Education,NATIONAL COLLEGE FOR TEACHING AND LEADERSHIP AGENCY,02/04/2015,Grants,Operations Directorate,Grants to third sector organisations / not for profit organisations and other businesses,UNIVERSITY OF DURHAM,4000204202,151760.00
Department for Education,DEPARTMENT FOR EDUCATION,21/04/2015,Programme costs,"Childcare, Special Educational Needs and Children's Strategy Group",Funding to deliver policies (excluding consultancy) paid to third parties via a service delivery contract,KENT COUNTY COUNCIL,4000205748,150307.49
Department for Education,DEPARTMENT FOR EDUCATION,21/04/2015,Grants,Free School Group,Grants to third sector organisations / not for profit organisations and other businesses,THE BRITISH SIKH SCHOOL,4000205784,150000.00
Department for Education,DEPARTMENT FOR EDUCATION,23/04/2015,Grants,Children's Services and Departmental Strategy Safeguarding Group,Grants to third sector organisations / not for profit organisations and other businesses,CSV,4000206042,148699.00
Department for Education,NATIONAL COLLEGE FOR TEACHING AND LEADERSHIP AGENCY,02/04/2015,Grants,Operations Directorate,Grants to third sector organisations / not for profit organisations and other businesses,LIVERPOOL HOPE UNIVERSITY,4000204320,147470.00
Department for Education,NATIONAL COLLEGE FOR TEACHING AND LEADERSHIP AGENCY,02/04/2015,Grants,Operations Directorate,Grants to third sector organisations / not for profit organisations and other businesses,NOTTINGHAM TRENT UNIVERSITY,4000204289,145380.00
Department for Education,DEPARTMENT FOR EDUCATION,01/04/2015,Programme costs,"Childcare, Special Educational Needs and Children's Strategy Group",Funding to deliver policies (excluding consultancy) paid to third parties via a service delivery contract,ACHIEVEMENT FOR ALL 3AS LTD,4000204058,141663.05
Department for Education,NATIONAL COLLEGE FOR TEACHING AND LEADERSHIP AGENCY,02/04/2015,Grants,Operations Directorate,Grants to third sector organisations / not for profit organisations and other businesses,ST MARYS UNIVERSITY COLLEGE,4000204538,141610.00
Department for Education,DEPARTMENT FOR EDUCATION,08/04/2015,Grants,Academies Delivery Group,Grants to third sector organisations / not for profit organisations and other businesses,TUDHOE LEARNING TRUST,4000204749,140000.00
Department for Education,DEPARTMENT FOR EDUCATION,14/04/2015,Grants,Academies Delivery Group,Grants to third sector organisations / not for profit organisations and other businesses,THE BISHOP WHEELER CATHOLIC ACADEMY TRUST,4000205147,140000.00
Department for Education,DEPARTMENT FOR EDUCATION,29/04/2015,Grants,Academies Delivery Group,Grants to third sector organisations / not for profit organisations and other businesses,DIOCESE OF ELY MULTI ACADEMY TRUST,4000206433,140000.00
Department for Education,NATIONAL COLLEGE FOR TEACHING AND LEADERSHIP AGENCY,02/04/2015,Grants,Operations Directorate,Grants to third sector organisations / not for profit organisations and other businesses,UNIVERSITY OF WOLVERHAMPTON,4000204203,139860.00
Department for Education,DEPARTMENT FOR EDUCATION,22/04/2015,Grants,Families Group,Grants to local authorities outside aggregate external funding or aggregate exchequer grant,LONDON BOROUGH OF HAMMERSMITH & FULHAM COUNCIL,4000205847,138800.00
Department for Education,NATIONAL COLLEGE FOR TEACHING AND LEADERSHIP AGENCY,02/04/2015,Grants,Operations Directorate,Grants to third sector organisations / not for profit organisations and other businesses,UNIVERSITY OF OXFORD,4000204238,138610.00
Department for Education,DEPARTMENT FOR EDUCATION,16/04/2015,Professional Services Other,"Childcare, Special Educational Needs and Children's Strategy Group",Research and evaluation activities,SQW LTD,4000205359,138428.40
Department for Education,NATIONAL COLLEGE FOR TEACHING AND LEADERSHIP AGENCY,02/04/2015,Grants,Operations Directorate,Grants to third sector organisations / not for profit organisations and other businesses,THE UNIVERSITY OF LEEDS,4000204609,137520.00
Department for Education,NATIONAL COLLEGE FOR TEACHING AND LEADERSHIP AGENCY,02/04/2015,Grants,Operations Directorate,Grants to third sector organisations / not for profit organisations and other businesses,STAFFORDSHIRE UNIVERSITY,4000204310,136500.00
Department for Education,NATIONAL COLLEGE FOR TEACHING AND LEADERSHIP AGENCY,02/04/2015,Grants,Operations Directorate,Grants to third sector organisations / not for profit organisations and other businesses,THE UNIVERSITY OF READING,4000204454,136360.00
Department for Education,DEPARTMENT FOR EDUCATION,17/04/2015,Professional Services Consultancy and Contingent Labour,Families Group,"Fees / expenses of professionals such as auditors, accountants, lawyers, etc. engaged to provide advice or opinion on how to affect something",DELOITTE,4000205608,135948.32
Department for Education,NATIONAL COLLEGE FOR TEACHING AND LEADERSHIP AGENCY,02/04/2015,Grants,Operations Directorate,Grants to third sector organisations / not for profit organisations and other businesses,UNIVERSITY OF THE WEST OF ENGLAND,4000204268,134480.00
Department for Education,DEPARTMENT FOR EDUCATION,21/04/2015,Grants,Children's Services and Departmental Strategy Safeguarding Group,Grants to third sector organisations / not for profit organisations and other businesses,VIRTUAL STAFF COLLEGE,4000205730,132531.46
Department for Education,DEPARTMENT FOR EDUCATION,27/04/2015,Office Solutions,Information Technology Group,Office machines,GLOBAL DOCUMENT OUTSOURCING XEROX UK LTD,4000206218,131863.17
Department for Education,NATIONAL COLLEGE FOR TEACHING AND LEADERSHIP AGENCY,02/04/2015,Grants,Operations Directorate,Grants to third sector organisations / not for profit organisations and other businesses,BIRMINGHAM CITY UNIVERSITY,4000204273,131690.00
Department for Education,NATIONAL COLLEGE FOR TEACHING AND LEADERSHIP AGENCY,02/04/2015,Grants,Operations Directorate,Grants to third sector organisations / not for profit organisations and other businesses,UNIVERSITY OF BRIGHTON,4000204451,130620.00
Department for Education,DEPARTMENT FOR EDUCATION,22/04/2015,Grants,Families Group,Grants to local authorities outside aggregate external funding or aggregate exchequer grant,CAMBRIDGESHIRE COUNTY COUNCIL,4000205937,129843.00
Department for Education,DEPARTMENT FOR EDUCATION,23/04/2015,Programme costs,Children in Care Division,Funding to deliver policies (excluding consultancy) paid to third parties via a service delivery contract,MOTT MACDONALD LTD,4000206057,129517.74
Department for Education,DEPARTMENT FOR EDUCATION,17/04/2015,Programme costs,"Childcare, Special Educational Needs and Children's Strategy Group",Funding to deliver policies (excluding consultancy) paid to third parties via a service delivery contract,BRITISH DYSLEXIA ASSOCIATION,4000205568,128469.80
Department for Education,NATIONAL COLLEGE FOR TEACHING AND LEADERSHIP AGENCY,02/04/2015,Grants,Operations Directorate,Grants to third sector organisations / not for profit organisations and other businesses,UNIVERSITY OF SOUTHAMPTON,4000204424,127400.00
Department for Education,DEPARTMENT FOR EDUCATION,23/04/2015,Facilities,Finance and Commercial Group - Property Asset Management,"Building maintenance and repair, including repainting, replacing flooring, etc.",SODEXHO PRESTIGE LTD,4000205966,127243.03
Department for Education,NATIONAL COLLEGE FOR TEACHING AND LEADERSHIP AGENCY,02/04/2015,Grants,Operations Directorate,Grants to third sector organisations / not for profit organisations and other businesses,UNIVERSITY OF LEICESTER,4000204231,126760.00
Department for Education,NATIONAL COLLEGE FOR TEACHING AND LEADERSHIP AGENCY,02/04/2015,Grants,Operations Directorate,Grants to third sector organisations / not for profit organisations and other businesses,GOLDSMITH COLLEGE,4000204432,125880.00
Department for Education,DEPARTMENT FOR EDUCATION,07/04/2015,Grants,Academies Delivery Group,Grants to third sector organisations / not for profit organisations and other businesses,WALSGRAVE CHURCH OF ENGLAND PRIMARY SCHOOL,4000204650,125000.00
Department for Education,DEPARTMENT FOR EDUCATION,21/04/2015,Grants,Assessment and Curriculum and General Qualifications Group,Grants to third sector organisations / not for profit organisations and other businesses,INSTITUTE OF EDUCATION,4000205734,125000.00
Department for Education,DEPARTMENT FOR EDUCATION,17/04/2015,Grants,"Childcare, Special Educational Needs and Children's Strategy Group",Grants to third sector organisations / not for profit organisations and other businesses,THE PLACE2BE,4000205524,123609.82
Department for Education,NATIONAL COLLEGE FOR TEACHING AND LEADERSHIP AGENCY,02/04/2015,Grants,Operations Directorate,Grants to third sector organisations / not for profit organisations and other businesses,NEWMAN COLLEGE,4000204557,122660.00
Department for Education,DEPARTMENT FOR EDUCATION,22/04/2015,Grants,Families Group,Grants to local authorities outside aggregate external funding or aggregate exchequer grant,DERBYSHIRE COUNTY COUNCIL,4000205924,122502.00
Department for Education,DEPARTMENT FOR EDUCATION,22/04/2015,Grants,Families Group,Grants to local authorities outside aggregate external funding or aggregate exchequer grant,KINGSTON UPON HULL COUNCIL,4000205953,122502.00
Department for Education,DEPARTMENT FOR EDUCATION,08/04/2015,Grants,Assessment and Curriculum and General Qualifications Group,Grants to third sector organisations / not for profit organisations and other businesses,SPORT ENGLAND,4000204769,122500.00
Department for Education,NATIONAL COLLEGE FOR TEACHING AND LEADERSHIP AGENCY,02/04/2015,Grants,Operations Directorate,Grants to third sector organisations / not for profit organisations and other businesses,UNIVERSITY OF SUSSEX,4000204347,118720.00
Department for Education,DEPARTMENT FOR EDUCATION,28/04/2015,Grants,"Childcare, Special Educational Needs and Children's Strategy Group",Grants to third sector organisations / not for profit organisations and other businesses,4CHILDREN,4000206267,118115.34
Department for Education,DEPARTMENT FOR EDUCATION,22/04/2015,Grants,Families Group,Grants to local authorities outside aggregate external funding or aggregate exchequer grant,LONDON BOROUGH OF HARROW COUNCIL,4000205861,118052.00
Department for Education,NATIONAL COLLEGE FOR TEACHING AND LEADERSHIP AGENCY,02/04/2015,Grants,Operations Directorate,Grants to third sector organisations / not for profit organisations and other businesses,LIVERPOOL JOHN MOORES UNIVERSITY,4000204274,118000.00
Department for Education,DEPARTMENT FOR EDUCATION,01/04/2015,Professional Services Other,"Childcare, Special Educational Needs and Children's Strategy Group","Fees / expenses of professionals, for example to implement advice or changes",CONTACT A FAMILY,4000204160,117110.11
Department for Education,NATIONAL COLLEGE FOR TEACHING AND LEADERSHIP AGENCY,02/04/2015,Grants,Operations Directorate,Grants to third sector organisations / not for profit organisations and other businesses,UNIVERSITY OF CHICHESTER,4000204396,113760.00
Department for Education,DEPARTMENT FOR EDUCATION,27/04/2015,Facilities,Finance and Commercial Group - Property Asset Management,Property management,SENATOR INTERNATIONAL LTD,4000206237,113165.44
Department for Education,NATIONAL COLLEGE FOR TEACHING AND LEADERSHIP AGENCY,02/04/2015,Grants,Operations Directorate,Grants to third sector organisations / not for profit organisations and other businesses,UNIVERSITY OF NEWCASTLE UPON TYNE,4000204222,112880.00
Department for Education,NATIONAL COLLEGE FOR TEACHING AND LEADERSHIP AGENCY,16/04/2015,Office Solutions,Operations Directorate,Document Storage,PROLOG,4000205404,10089.39
Department for Education,DEPARTMENT FOR EDUCATION,30/04/2015,ICT,Information Technology Group,ICT Software,LOCKHEED MARTIN,4000206565,111819.65
Department for Education,DEPARTMENT FOR EDUCATION,20/04/2015,Grants,Free School Group,Grants to third sector organisations / not for profit organisations and other businesses,FLOREAT EDUCATION ACADEMIES TRUST,4000205639,111000.00
Department for Education,NATIONAL COLLEGE FOR TEACHING AND LEADERSHIP AGENCY,02/04/2015,Grants,Operations Directorate,Grants to third sector organisations / not for profit organisations and other businesses,LEEDS TRINITY UNIVERSITY COLLEGE,4000204198,110920.00
Department for Education,NATIONAL COLLEGE FOR TEACHING AND LEADERSHIP AGENCY,02/04/2015,Grants,Operations Directorate,Grants to third sector organisations / not for profit organisations and other businesses,UNIVERSITY OF GREENWICH,4000204516,110800.00
Department for Education,NATIONAL COLLEGE FOR TEACHING AND LEADERSHIP AGENCY,02/04/2015,Grants,Operations Directorate,Grants to third sector organisations / not for profit organisations and other businesses,UNIVERSITY OF WARWICK,4000204359,110470.00
Department for Education,DEPARTMENT FOR EDUCATION,22/04/2015,Grants,Families Group,Grants to local authorities outside aggregate external funding or aggregate exchequer grant,CITY OF WESTMINSTER,4000205854,110150.00
Department for Education,DEPARTMENT FOR EDUCATION,07/04/2015,Grants,Free School Group,Grants to third sector organisations / not for profit organisations and other businesses,WYNYARD CE PRIMARY SCHOOL,4000204666,110000.00
Department for Education,DEPARTMENT FOR EDUCATION,17/04/2015,Grants,Families Group,Grants to third sector organisations / not for profit organisations and other businesses,MORNING LANE ASSOCIATES,4000205563,109877.18
Department for Education,DEPARTMENT FOR EDUCATION,24/04/2015,ICT,Systems and Accountability Group,ICT Services,CAPGEMINI UK PLC,4000206142,109248.55
Department for Education,DEPARTMENT FOR EDUCATION,22/04/2015,Grants,Families Group,Grants to local authorities outside aggregate external funding or aggregate exchequer grant,THE ROYAL BOROUGH OF WINDSOR & MAIDENHEAD,4000205936,109000.00
Department for Education,DEPARTMENT FOR EDUCATION,02/04/2015,Energy and Fuels,Finance and Commercial Group - Property Asset Management,Electricity supply,EDF ENERGY LTD,4000204208,108731.47
Department for Education,NATIONAL COLLEGE FOR TEACHING AND LEADERSHIP AGENCY,02/04/2015,Grants,Operations Directorate,Grants to third sector organisations / not for profit organisations and other businesses,UNIVERSITY OF EAST LONDON,4000204240,108605.00
Department for Education,DEPARTMENT FOR EDUCATION,21/04/2015,Grants,Children's Services and Departmental Strategy Safeguarding Group,Grants to third sector organisations / not for profit organisations and other businesses,YOUTH ACCESS,4000205742,108106.07
Department for Education,DEPARTMENT FOR EDUCATION,02/04/2015,Grants,"Childcare, Special Educational Needs and Children's Strategy Group",Grants to third sector organisations / not for profit organisations and other businesses,PRE SCHOOL LEARNING ALLIANCE,4000204564,106373.08
Department for Education,NATIONAL COLLEGE FOR TEACHING AND LEADERSHIP AGENCY,02/04/2015,Grants,Operations Directorate,Grants to third sector organisations / not for profit organisations and other businesses,UNIVERSITY OF HULL,4000204352,105920.00
Department for Education,NATIONAL COLLEGE FOR TEACHING AND LEADERSHIP AGENCY,02/04/2015,Grants,Operations Directorate,Grants to third sector organisations / not for profit organisations and other businesses,KINGSTON UNIVERSITY,4000204417,105390.00
Department for Education,DEPARTMENT FOR EDUCATION,20/04/2015,Professional Services Other,Academies Delivery Group,"Fees / expenses of professionals, for example to implement advice or changes",VEREDUS C/O CAPITA RESOURCING LTD,4000205675,105339.36
Department for Education,DEPARTMENT FOR EDUCATION,24/04/2015,Grants,Academies Delivery Group,Grants to third sector organisations / not for profit organisations and other businesses,MEADOWS PRIMARY SCHOOL,4000206094,105000.00
Department for Education,DEPARTMENT FOR EDUCATION,10/04/2015,ICT,Information Technology Group,ICT Software,INSIGHT DIRECT UK LIMITED,4000204982,104484.65
Department for Education,DEPARTMENT FOR EDUCATION,22/04/2015,Grants,Families Group,Grants to local authorities outside aggregate external funding or aggregate exchequer grant,BUCKINGHAMSHIRE COUNTY COUNCIL,4000205917,102907.00
Department for Education,DEPARTMENT FOR EDUCATION,22/04/2015,Grants,Families Group,Grants to local authorities outside aggregate external funding or aggregate exchequer grant,LONDON BOROUGH OF SOUTHWARK COUNCIL,4000205965,102877.00
Department for Education,DEPARTMENT FOR EDUCATION,23/04/2015,Facilities,School Standards Group,Business rates,EUROPEAN SCHOOL CULHAM,4000205968,101773.35
Department for Education,NATIONAL COLLEGE FOR TEACHING AND LEADERSHIP AGENCY,02/04/2015,Grants,Operations Directorate,Grants to third sector organisations / not for profit organisations and other businesses,BISHOP GROSSETESTE COLLEGE,4000204531,101220.00
Department for Education,DEPARTMENT FOR EDUCATION,28/04/2015,Personnel Related,School Standards Group,Additional pension contributions paid to teachers working in European schools following a European Court judgement.,TEACHERS PENSIONS,4000206333,100852.38
Department for Education,DEPARTMENT FOR EDUCATION,07/04/2015,Grants,Academies Delivery Group,"Grants paid to organisations including agencies, arms length bodies and educational establishments",ST PATRICKS CATHOLIC COLLEGE,4000204672,100000.00
Department for Education,DEPARTMENT FOR EDUCATION,07/04/2015,Grants,Academies Delivery Group,Grants to third sector organisations / not for profit organisations and other businesses,ST PATRICKS CATHOLIC COLLEGE,4000204672,100000.00
Department for Education,DEPARTMENT FOR EDUCATION,08/04/2015,Grants,Academies Delivery Group,Grants to third sector organisations / not for profit organisations and other businesses,OLD BEXLEY CE PRIMARY SCHOOL,4000204751,100000.00
Department for Education,DEPARTMENT FOR EDUCATION,13/04/2015,Grants,Academies Delivery Group,Grants to third sector organisations / not for profit organisations and other businesses,YARLSIDE NURSERY & PRIMARY SCHOOL,4000205042,100000.00
Department for Education,DEPARTMENT FOR EDUCATION,29/04/2015,Grants,Academies Delivery Group,Grants to third sector organisations / not for profit organisations and other businesses,HAYWOOD ACADEMY,4000206344,100000.00
Department for Education,NATIONAL COLLEGE FOR TEACHING AND LEADERSHIP AGENCY,02/04/2015,Grants,Operations Directorate,Grants to third sector organisations / not for profit organisations and other businesses,UNIVERSITY OF SUSSEX,4000204347,99105.00
Department for Education,NATIONAL COLLEGE FOR TEACHING AND LEADERSHIP AGENCY,02/04/2015,Grants,Operations Directorate,Grants to third sector organisations / not for profit organisations and other businesses,OXFORD BROOKES UNIVERSITY,4000204560,98960.00
Department for Education,DEPARTMENT FOR EDUCATION,24/04/2015,Grants,Children's Services and Departmental Strategy Safeguarding Group,Grants to third sector organisations / not for profit organisations and other businesses,DIANA PRINCESS  MEMORIAL AWARD,4000206170,98850.00
Department for Education,DEPARTMENT FOR EDUCATION,08/04/2015,Grants,Assessment and Curriculum and General Qualifications Group,Grants to third sector organisations / not for profit organisations and other businesses,BOURNVILLE JUNIOR SCHOOL,4000204805,98544.00
Department for Education,NATIONAL COLLEGE FOR TEACHING AND LEADERSHIP AGENCY,02/04/2015,Grants,Delivery Directorate,Grants to third sector organisations / not for profit organisations and other businesses,EDGE HILL UNIVERSITY,4000204229,97980.00
Department for Education,DEPARTMENT FOR EDUCATION,27/04/2015,Facilities,Finance and Commercial Group - Property Asset Management,"Building maintenance and repair, including repainting, replacing flooring, etc.",SODEXHO PRESTIGE LTD,4000206182,97624.19
Department for Education,NATIONAL COLLEGE FOR TEACHING AND LEADERSHIP AGENCY,02/04/2015,Grants,Operations Directorate,Grants to third sector organisations / not for profit organisations and other businesses,UNIVERSITY OF NORTHUMBRIA,4000204265,97460.00
Department for Education,NATIONAL COLLEGE FOR TEACHING AND LEADERSHIP AGENCY,02/04/2015,Grants,Operations Directorate,Grants to third sector organisations / not for profit organisations and other businesses,MANCHESTER METROPOLITAN UNIVERSITY,4000204494,96665.40
Department for Education,DEPARTMENT FOR EDUCATION,23/04/2015,Professional Services Consultancy and Contingent Labour,Children's Services and Departmental Strategy Safeguarding Group,"Advisory services including fees, travel and expenses",BURGES SALMON,4000206013,96148.74
Department for Education,DEPARTMENT FOR EDUCATION,15/04/2015,ICT,Information Technology Group,Telecoms facilities and services - telecom rentals,VODAFONE,4000205244,96084.92
Department for Education,NATIONAL COLLEGE FOR TEACHING AND LEADERSHIP AGENCY,02/04/2015,Grants,Operations Directorate,Grants to third sector organisations / not for profit organisations and other businesses,UNIVERSITY OF YORK,4000204223,95520.00
Department for Education,DEPARTMENT FOR EDUCATION,21/04/2015,Programme costs,"Childcare, Special Educational Needs and Children's Strategy Group",Funding to deliver policies (excluding consultancy) paid to third parties via a service delivery contract,FAMILY LIVES,4000205782,95254.97
Department for Education,NATIONAL COLLEGE FOR TEACHING AND LEADERSHIP AGENCY,02/04/2015,Grants,Operations Directorate,Grants to third sector organisations / not for profit organisations and other businesses,BRUNEL UNIVERSITY,4000204540,94000.00
Department for Education,NATIONAL COLLEGE FOR TEACHING AND LEADERSHIP AGENCY,02/04/2015,Grants,Operations Directorate,Grants to third sector organisations / not for profit organisations and other businesses,UNIVERSITY OF HERTFORDSHIRE,4000204286,93320.00
Department for Education,NATIONAL COLLEGE FOR TEACHING AND LEADERSHIP AGENCY,02/04/2015,Grants,Operations Directorate,Grants to third sector organisations / not for profit organisations and other businesses,UNIVERSITY OF SUNDERLAND,4000204611,91920.00
Department for Education,DEPARTMENT FOR EDUCATION,24/04/2015,ICT,Information Technology Group,ICT Services,CAPGEMINI UK PLC,4000206142,91833.00
Department for Education,DEPARTMENT FOR EDUCATION,01/04/2015,Grants,Children in Care Division,Grants to third sector organisations / not for profit organisations and other businesses,BRITISH ASSOCIATION FOR ADOPTION & FOSTERING,4000204053,91006.78
Department for Education,DEPARTMENT FOR EDUCATION,02/04/2015,Professional Services Other,"Childcare, Special Educational Needs and Children's Strategy Group",Research and evaluation activities,NATIONAL CENTRE FOR SOCIAL RESEARCH,4000204201,90000.00
Department for Education,DEPARTMENT FOR EDUCATION,16/04/2015,Grants,Free School Group,Grants to third sector organisations / not for profit organisations and other businesses,TAUHEEDUL ISLAM BOYS HIGH SCHOOL,4000205318,90000.00
Department for Education,DEPARTMENT FOR EDUCATION,20/04/2015,Grants,Free School Group,Grants to third sector organisations / not for profit organisations and other businesses,THE GREEN SCHOOL,4000205631,90000.00
Department for Education,DEPARTMENT FOR EDUCATION,20/04/2015,Grants,Free School Group,Grants to third sector organisations / not for profit organisations and other businesses,LION ACADEMY TRUST,4000205659,90000.00
Department for Education,DEPARTMENT FOR EDUCATION,20/04/2015,Grants,Free School Group,Grants to third sector organisations / not for profit organisations and other businesses,FELTHAM COMMUNITY COLLEGE,4000205678,90000.00
Department for Education,DEPARTMENT FOR EDUCATION,20/04/2015,Grants,Free School Group,Grants to third sector organisations / not for profit organisations and other businesses,BULLERS WOOD SCHOOL,4000205696,90000.00
Department for Education,DEPARTMENT FOR EDUCATION,20/04/2015,Grants,Free School Group,Grants to third sector organisations / not for profit organisations and other businesses,EMLC ACADEMY TRUST,4000205708,90000.00
Department for Education,DEPARTMENT FOR EDUCATION,20/04/2015,Grants,Free School Group,Grants to third sector organisations / not for profit organisations and other businesses,THE CHARTER SCHOOL,4000205716,90000.00
Department for Education,DEPARTMENT FOR EDUCATION,24/04/2015,Grants,Academies Delivery Group,Grants to third sector organisations / not for profit organisations and other businesses,DIOCESE OF CHICHESTER ACADEMY TRUST,4000206090,90000.00
Department for Education,DEPARTMENT FOR EDUCATION,24/04/2015,Grants,Free School Group,Grants to third sector organisations / not for profit organisations and other businesses,CHRISTLETON INTERNATIONAL STUDIO,4000206107,90000.00
Department for Education,STANDARDS AND TESTING AGENCY,29/04/2015,Print and Print Management,Test Operations Division,Secure printing,WILLIAMS LEA,4000206374,89970.49
Department for Education,DEPARTMENT FOR EDUCATION,09/04/2015,Grants,"Childcare, Special Educational Needs and Children's Strategy Group",Grants to third sector organisations / not for profit organisations and other businesses,THE NATIONAL LITERACY TRUST,4000204855,89860.67
Department for Education,DEPARTMENT FOR EDUCATION,02/04/2015,Programme costs,"Childcare, Special Educational Needs and Children's Strategy Group",Funding to deliver policies (excluding consultancy) paid to third parties via a service delivery contract,RELATE,4000204565,89310.05
Department for Education,NATIONAL COLLEGE FOR TEACHING AND LEADERSHIP AGENCY,02/04/2015,Grants,Operations Directorate,Grants to third sector organisations / not for profit organisations and other businesses,UNIVERSITY OF SHEFFIELD,4000204294,89280.00
Department for Education,DEPARTMENT FOR EDUCATION,16/04/2015,Grants,Free School Group,Grants to third sector organisations / not for profit organisations and other businesses,ARK SCHOOLS,4000205330,88000.00
Department for Education,NATIONAL COLLEGE FOR TEACHING AND LEADERSHIP AGENCY,02/04/2015,Grants,Operations Directorate,Grants to third sector organisations / not for profit organisations and other businesses,UNIVERSITY OF BRIGHTON,4000204451,87967.80
Department for Education,DEPARTMENT FOR EDUCATION,13/04/2015,Personnel Related,Human Resources Group,Childcare expenses paid to staff,FIDELITI LTD,4000205088,87367.59
Department for Education,NATIONAL COLLEGE FOR TEACHING AND LEADERSHIP AGENCY,02/04/2015,Grants,Operations Directorate,Grants to third sector organisations / not for profit organisations and other businesses,LONDON METROPOLITAN UNIVERSITY,4000204317,86240.00
Department for Education,DEPARTMENT FOR EDUCATION,15/04/2015,Professional Services Consultancy and Contingent Labour,"Childcare, Special Educational Needs and Children's Strategy Group","Advisory services including fees, travel and expenses",ATKINS LTD,4000205291,85177.22
Department for Education,DEPARTMENT FOR EDUCATION,28/04/2015,ICT,Information Technology Group,ICT Hardware,VODAFONE LTD,4000206305,84958.90
Department for Education,DEPARTMENT FOR EDUCATION,09/04/2015,ICT,Information Technology Group,ICT Software,PHOENIX SOFTWARE LTD,4000204931,84424.80
Department for Education,STANDARDS AND TESTING AGENCY,09/04/2015,Programme costs,Test Operations Division,Funding to deliver policies (excluding consultancy) paid to third parties via a service delivery contract,PEARSON EDUCATION LTD,4000204908,84379.00
Department for Education,NATIONAL COLLEGE FOR TEACHING AND LEADERSHIP AGENCY,02/04/2015,Grants,Operations Directorate,Grants to third sector organisations / not for profit organisations and other businesses,UNIVERSITY OF DERBY,4000204312,82240.00
Department for Education,DEPARTMENT FOR EDUCATION,22/04/2015,Grants,Families Group,Grants to local authorities outside aggregate external funding or aggregate exchequer grant,THE ROYAL BOROUGH OF KENSINGTON & CHELSEA COUNCIL,4000205964,81550.00
Department for Education,DEPARTMENT FOR EDUCATION,28/04/2015,ICT,Information Technology Group,ICT Services,REDWEB,4000206316,81114.00
Department for Education,DEPARTMENT FOR EDUCATION,07/04/2015,Grants,Academies Delivery Group,Grants to third sector organisations / not for profit organisations and other businesses,THE EDUCATION PARTNERSHIP TRUST,4000204682,80420.00
Department for Education,DEPARTMENT FOR EDUCATION,28/04/2015,Grants,Families Group,Grants to third sector organisations / not for profit organisations and other businesses,RESOLUTIONS CONSULTANCY PTY LTD,4000206304,80190.48
Department for Education,DEPARTMENT FOR EDUCATION,07/04/2015,Grants,Academies Delivery Group,Grants to third sector organisations / not for profit organisations and other businesses,RIGHTFORSUCCESS TRUST,4000204657,80000.00
Department for Education,DEPARTMENT FOR EDUCATION,08/04/2015,Grants,Academies Delivery Group,Grants to third sector organisations / not for profit organisations and other businesses,BELFAIRS HIGH SCHOOL,4000204766,80000.00
Department for Education,DEPARTMENT FOR EDUCATION,08/04/2015,Grants,Academies Delivery Group,Grants to third sector organisations / not for profit organisations and other businesses,NINESTILES ACADEMY TRUST,4000204838,80000.00
Department for Education,DEPARTMENT FOR EDUCATION,21/04/2015,Grants,Academies Delivery Group,Grants to third sector organisations / not for profit organisations and other businesses,THE REDHILL ACADEMY,4000205783,80000.00
Department for Education,DEPARTMENT FOR EDUCATION,21/04/2015,Grants,Academies Delivery Group,Grants to third sector organisations / not for profit organisations and other businesses,THE THOMAS HARDYE SCHOOL,4000205830,80000.00
Department for Education,DEPARTMENT FOR EDUCATION,29/04/2015,Grants,Academies Delivery Group,Grants to third sector organisations / not for profit organisations and other businesses,GREENSHAW LEARNING TRUST,4000206409,80000.00
Department for Education,NATIONAL COLLEGE FOR TEACHING AND LEADERSHIP AGENCY,02/04/2015,Grants,Operations Directorate,Grants to third sector organisations / not for profit organisations and other businesses,MIDDLESEX UNIVERSITY,4000204602,79280.00
Department for Education,NATIONAL COLLEGE FOR TEACHING AND LEADERSHIP AGENCY,02/04/2015,Grants,Operations Directorate,Grants to third sector organisations / not for profit organisations and other businesses,UNIVERSITY OF PORTSMOUTH,4000204246,78800.00
Department for Education,NATIONAL COLLEGE FOR TEACHING AND LEADERSHIP AGENCY,23/04/2015,Communications,Operations Directorate,"Publicity, advertising, media advertising campaigns (excluding recruitment adverts)",CARAT,4000206019,78468.17
Department for Education,DEPARTMENT FOR EDUCATION,07/04/2015,Personnel Related,School Standards Group,Additional pension contributions paid to teachers working in European schools following a European Court judgement.,TEACHERS PENSIONS,4000204720,78429.13
Department for Education,DEPARTMENT FOR EDUCATION,10/04/2015,ICT,Information Technology Group,ICT Software,COMPAREX UK LTD,4000205012,76860.00
Department for Education,NATIONAL COLLEGE FOR TEACHING AND LEADERSHIP AGENCY,02/04/2015,Grants,Operations Directorate,Grants to third sector organisations / not for profit organisations and other businesses,UNIVERSITY OF BEDFORDSHIRE,4000204358,75520.00
Department for Education,DEPARTMENT FOR EDUCATION,21/04/2015,Grants,Closing the Gap Group,Grants to third sector organisations / not for profit organisations and other businesses,ASSOCIATION OF COLLEGES,4000205735,75284.00
Department for Education,DEPARTMENT FOR EDUCATION,17/04/2015,Programme costs,Children in Care Division,Funding to deliver policies (excluding consultancy) paid to third parties via a service delivery contract,DELOITTE MSC LTD,4000205607,75136.35
Department for Education,DEPARTMENT FOR EDUCATION,17/04/2015,Grants,Assessment and Curriculum and General Qualifications Group,Grants to third sector organisations / not for profit organisations and other businesses,STEMNET,4000205609,75022.00
Department for Education,DEPARTMENT FOR EDUCATION,07/04/2015,Grants,Office of the Schools Commissioner Group,Grants to third sector organisations / not for profit organisations and other businesses,THE SCHOOLS COMPANY TRUST,4000204669,75000.00
Department for Education,DEPARTMENT FOR EDUCATION,07/04/2015,Grants,Office of the Schools Commissioner Group,Grants to third sector organisations / not for profit organisations and other businesses,SOUTH GLOUCESTERSHIRE & STROUD COLLEGE,4000204681,75000.00
Department for Education,DEPARTMENT FOR EDUCATION,07/04/2015,Grants,Office of the Schools Commissioner Group,Grants to third sector organisations / not for profit organisations and other businesses,PERRY HALL MULTI ACADEMY TRUST,4000204694,75000.00
Department for Education,DEPARTMENT FOR EDUCATION,07/04/2015,Grants,Office of the Schools Commissioner Group,Grants to third sector organisations / not for profit organisations and other businesses,THE PIONEER ACADEMY,4000204695,75000.00
Department for Education,DEPARTMENT FOR EDUCATION,07/04/2015,Grants,Office of the Schools Commissioner Group,"Grants paid to organisations including agencies, arms length bodies and educational establishments",CARLTON LE WILLOWS ACADEMY,4000204704,75000.00
Department for Education,DEPARTMENT FOR EDUCATION,07/04/2015,Grants,Office of the Schools Commissioner Group,"Grants paid to organisations including agencies, arms length bodies and educational establishments",THE THOMAS HARDYE SCHOOL,4000204718,75000.00
Department for Education,DEPARTMENT FOR EDUCATION,14/04/2015,Grants,Office of the Schools Commissioner Group,Grants to third sector organisations / not for profit organisations and other businesses,GREENACRE ACADEMY TRUST,4000205134,75000.00
Department for Education,DEPARTMENT FOR EDUCATION,20/04/2015,Grants,Free School Group,Grants to third sector organisations / not for profit organisations and other businesses,TBAP TRUST,4000205667,75000.00
Department for Education,DEPARTMENT FOR EDUCATION,21/04/2015,Grants,Assessment and Curriculum and General Qualifications Group,Grants to third sector organisations / not for profit organisations and other businesses,ASSOCIATION FOR LANGUAGE LEARNING,4000205767,75000.00
Department for Education,DEPARTMENT FOR EDUCATION,21/04/2015,Grants,Office of the Schools Commissioner Group,Grants to third sector organisations / not for profit organisations and other businesses,THE LEARNING PARTNERSHIP TRUST,4000205792,75000.00
Department for Education,DEPARTMENT FOR EDUCATION,21/04/2015,Grants,Office of the Schools Commissioner Group,Grants to third sector organisations / not for profit organisations and other businesses,CONSILIUM ACADEMIES,4000205801,75000.00
Department for Education,DEPARTMENT FOR EDUCATION,21/04/2015,Grants,Office of the Schools Commissioner Group,Grants to third sector organisations / not for profit organisations and other businesses,SOUTH TENDRING EDUCATION PARTNERSHIP,4000205804,75000.00
Department for Education,DEPARTMENT FOR EDUCATION,07/04/2015,Grants,Office of the Schools Commissioner Group,Grants to third sector organisations / not for profit organisations and other businesses,THE EDUCATION PARTNERSHIP TRUST,4000204682,74522.09
Department for Education,NATIONAL COLLEGE FOR TEACHING AND LEADERSHIP AGENCY,02/04/2015,Grants,Operations Directorate,Grants to third sector organisations / not for profit organisations and other businesses,YORK ST JOHN UNIVERSITY,4000204218,73785.00
Department for Education,NATIONAL COLLEGE FOR TEACHING AND LEADERSHIP AGENCY,02/04/2015,Grants,Operations Directorate,Grants to third sector organisations / not for profit organisations and other businesses,UNIVERSITY OF GLOUCESTERSHIRE,4000204295,72720.00
Department for Education,NATIONAL COLLEGE FOR TEACHING AND LEADERSHIP AGENCY,02/04/2015,Grants,Operations Directorate,Grants to third sector organisations / not for profit organisations and other businesses,UNIVERSITY OF WINCHESTER,4000204422,72705.60
Department for Education,DEPARTMENT FOR EDUCATION,21/04/2015,Professional Services Consultancy and Contingent Labour,Finance and Commercial Group,"Advisory services including fees, travel and expenses",DELOITTE LLP,4000205761,72000.00
Department for Education,NATIONAL COLLEGE FOR TEACHING AND LEADERSHIP AGENCY,02/04/2015,Grants,Operations Directorate,Grants to third sector organisations / not for profit organisations and other businesses,UNIVERSITY OF PLYMOUTH,4000204348,71760.00
Department for Education,DEPARTMENT FOR EDUCATION,28/04/2015,Grants,Assessment and Curriculum and General Qualifications Group,Grants to third sector organisations / not for profit organisations and other businesses,UNIVERSITY OF CAMBRIDGE,4000206280,70550.00
Department for Education,DEPARTMENT FOR EDUCATION,07/04/2015,Grants,Academies Delivery Group,"Grants paid to organisations including agencies, arms length bodies and educational establishments",NORMANDY PRIMARY SCHOOL,4000204705,70000.00
Department for Education,DEPARTMENT FOR EDUCATION,08/04/2015,Grants,Academies Delivery Group,Grants to third sector organisations / not for profit organisations and other businesses,THE PIONEER ACADEMY TRUST,4000204752,70000.00
Department for Education,DEPARTMENT FOR EDUCATION,08/04/2015,Grants,Academies Delivery Group,Grants to third sector organisations / not for profit organisations and other businesses,BOURNE EDUCATION TRUST,4000204816,70000.00
Department for Education,DEPARTMENT FOR EDUCATION,08/04/2015,Grants,Academies Delivery Group,Grants to third sector organisations / not for profit organisations and other businesses,ST CHRISTOPHERS COFE MULTI ACADEMY TRUST,4000204825,70000.00
Department for Education,DEPARTMENT FOR EDUCATION,08/04/2015,Grants,Academies Delivery Group,Grants to third sector organisations / not for profit organisations and other businesses,DRB IGNITE LTD,4000204826,70000.00
Department for Education,DEPARTMENT FOR EDUCATION,08/04/2015,Grants,Academies Delivery Group,Grants to third sector organisations / not for profit organisations and other businesses,WALSGRAVE CHURCH OF ENGLAND PRIMARY SCHOOL,4000204836,70000.00
Department for Education,DEPARTMENT FOR EDUCATION,13/04/2015,Grants,Academies Delivery Group,Grants to third sector organisations / not for profit organisations and other businesses,DAVID ROSS EDUCATION TRUST,4000205084,70000.00
Department for Education,DEPARTMENT FOR EDUCATION,14/04/2015,Grants,Academies Delivery Group,Grants to third sector organisations / not for profit organisations and other businesses,FIRST FEDERATION TRUST,4000205135,70000.00
Department for Education,DEPARTMENT FOR EDUCATION,14/04/2015,Grants,Academies Delivery Group,Grants to third sector organisations / not for profit organisations and other businesses,THE GOOD SHEPHERD MULTI ACADEMY,4000205137,70000.00
Department for Education,DEPARTMENT FOR EDUCATION,21/04/2015,Grants,Academies Delivery Group,Grants to third sector organisations / not for profit organisations and other businesses,WESTWOOD ACADEMY,4000205726,70000.00
Department for Education,DEPARTMENT FOR EDUCATION,21/04/2015,Grants,Academies Delivery Group,Grants to third sector organisations / not for profit organisations and other businesses,REACH 2 ESSEX ACADEMY TRUST,4000205764,70000.00
Department for Education,DEPARTMENT FOR EDUCATION,21/04/2015,Grants,Academies Delivery Group,Grants to third sector organisations / not for profit organisations and other businesses,THE LEARNING PARTNERSHIP TRUST,4000205792,70000.00
Department for Education,DEPARTMENT FOR EDUCATION,24/04/2015,Grants,Academies Delivery Group,Grants to third sector organisations / not for profit organisations and other businesses,ACADEMY TRANSFORMATION TRUST,4000206081,70000.00
Department for Education,DEPARTMENT FOR EDUCATION,24/04/2015,Grants,Academies Delivery Group,Grants to third sector organisations / not for profit organisations and other businesses,TRINITY C OF E ACADEMY TRUST,4000206104,70000.00
Department for Education,DEPARTMENT FOR EDUCATION,24/04/2015,Grants,Closing the Gap Group,Grants to third sector organisations / not for profit organisations and other businesses,SKILL FORCE DEVELOPMENT,4000206156,69400.00
Department for Education,NATIONAL COLLEGE FOR TEACHING AND LEADERSHIP AGENCY,02/04/2015,Grants,Operations Directorate,Grants to third sector organisations / not for profit organisations and other businesses,BRADFORD COLLEGE,4000204321,68960.00
Department for Education,NATIONAL COLLEGE FOR TEACHING AND LEADERSHIP AGENCY,02/04/2015,Grants,Operations Directorate,Grants to third sector organisations / not for profit organisations and other businesses,LIVERPOOL HOPE UNIVERSITY,4000204320,67954.95
Department for Education,DEPARTMENT FOR EDUCATION,02/04/2015,ICT,Information Technology Group,Partial payment for IT hardware / consumables,INSIGHT DIRECT UK LIMITED,4000204545,67815.60
Department for Education,NATIONAL COLLEGE FOR TEACHING AND LEADERSHIP AGENCY,02/04/2015,Grants,Operations Directorate,Grants to third sector organisations / not for profit organisations and other businesses,ST MARYS UNIVERSITY COLLEGE,4000204538,66695.00
Department for Education,DEPARTMENT FOR EDUCATION,02/04/2015,Communications,Communications Group,Marketing services,NEWSPAPER LICENSING AGENCY LTD,4000204462,66629.45
Department for Education,NATIONAL COLLEGE FOR TEACHING AND LEADERSHIP AGENCY,02/04/2015,Grants,Operations Directorate,Grants to third sector organisations / not for profit organisations and other businesses,UNIVERSITY OF SOUTHAMPTON,4000204424,66000.00
Department for Education,DEPARTMENT FOR EDUCATION,20/04/2015,Grants,Free School Group,Grants to third sector organisations / not for profit organisations and other businesses,HEARTLANDS COMMUNITY TRUST,4000205628,66000.00
Department for Education,DEPARTMENT FOR EDUCATION,20/04/2015,Grants,Free School Group,Grants to third sector organisations / not for profit organisations and other businesses,CHEADLE HULME HIGH SCHOOL,4000205633,66000.00
Department for Education,DEPARTMENT FOR EDUCATION,20/04/2015,Grants,Free School Group,Grants to third sector organisations / not for profit organisations and other businesses,REACH 2 WALTHAM FOREST ACADEMY TRUST,4000205654,66000.00
Department for Education,DEPARTMENT FOR EDUCATION,20/04/2015,Grants,Free School Group,Grants to third sector organisations / not for profit organisations and other businesses,MERCHANTS ACADEMY WITHYWOOD,4000205676,66000.00
Department for Education,DEPARTMENT FOR EDUCATION,20/04/2015,Grants,Free School Group,Grants to third sector organisations / not for profit organisations and other businesses,BENNETT MEMORIAL DIOCESAN SCHOOL,4000205679,66000.00
Department for Education,DEPARTMENT FOR EDUCATION,20/04/2015,Grants,Free School Group,Grants to third sector organisations / not for profit organisations and other businesses,ASHMOLE SCHOOL,4000205698,66000.00
Department for Education,DEPARTMENT FOR EDUCATION,20/04/2015,Grants,Free School Group,Grants to third sector organisations / not for profit organisations and other businesses,BROADCLYST PRIMARY SCHOOL,4000205711,66000.00
Department for Education,DEPARTMENT FOR EDUCATION,24/04/2015,Grants,Free School Group,Grants to third sector organisations / not for profit organisations and other businesses,WEEL TRUST,4000206069,66000.00
Department for Education,DEPARTMENT FOR EDUCATION,24/04/2015,Grants,Free School Group,Grants to third sector organisations / not for profit organisations and other businesses,KINGSTEIGNTON SCHOOL,4000206105,66000.00
Department for Education,DEPARTMENT FOR EDUCATION,24/04/2015,Grants,Children in Care Division,Grants to third sector organisations / not for profit organisations and other businesses,CORAM,4000206168,65839.59
Department for Education,DEPARTMENT FOR EDUCATION,24/04/2015,Grants,"Childcare, Special Educational Needs and Children's Strategy Group",Grants to third sector organisations / not for profit organisations and other businesses,THE MOVEMENT FOR NON MOBILE,4000206154,64374.55
Department for Education,DEPARTMENT FOR EDUCATION,02/04/2015,ICT,Information Technology Group,Partial payment for IT hardware / consumables,XMA LTD,4000204595,64286.40
Department for Education,DEPARTMENT FOR EDUCATION,28/04/2015,Grants,Children in Care Division,Grants to third sector organisations / not for profit organisations and other businesses,AFTER ADOPTION,4000206289,64246.94
Department for Education,DEPARTMENT FOR EDUCATION,23/04/2015,Programme costs,"Childcare, Special Educational Needs and Children's Strategy Group",Funding to deliver policies (excluding consultancy) paid to third parties via a service delivery contract,NETMUMS LTD,4000206024,64004.00
Department for Education,DEPARTMENT FOR EDUCATION,10/04/2015,Professional Services Other,Assessment and Curriculum and General Qualifications Group,Research and evaluation activities,SHEFFIELD HALLAM UNIVERSITY,4000204948,63877.00
Department for Education,DEPARTMENT FOR EDUCATION,21/04/2015,Grants,Closing the Gap Group,Grants to third sector organisations / not for profit organisations and other businesses,157 GROUP LTD,4000205745,62900.00
Department for Education,DEPARTMENT FOR EDUCATION,15/04/2015,ICT,Information Technology Group,ICT Services,EDUSERV,4000205273,62156.28
Department for Education,DEPARTMENT FOR EDUCATION,09/04/2015,Grants,Children in Care Division,Grants to third sector organisations / not for profit organisations and other businesses,THE SHARE FOUNDATION 3RD PARTY TRUST,4000204914,61400.00
Department for Education,NATIONAL COLLEGE FOR TEACHING AND LEADERSHIP AGENCY,01/04/2015,Travel,Delivery Directorate,"Staff business travel including air, coach, ferry, rail, taxi and car hire",REDFERN TRAVEL LTD,1001645,61204.89
Department for Education,NATIONAL COLLEGE FOR TEACHING AND LEADERSHIP AGENCY,02/04/2015,Grants,Operations Directorate,Grants to third sector organisations / not for profit organisations and other businesses,ANGLIA RUSKIN UNIVERSITY,4000204541,60880.00
Department for Education,NATIONAL COLLEGE FOR TEACHING AND LEADERSHIP AGENCY,02/04/2015,Programme costs,Delivery Directorate,Funding to deliver policies (excluding consultancy) paid to third parties via a service delivery contract,ECCTIS LTD,4000204361,60780.00
Department for Education,DEPARTMENT FOR EDUCATION,10/04/2015,Professional Services Other,Strategic Analysis and Research and Policy Impact Group,Research and evaluation activities,NATIONAL CENTRE FOR SOCIAL RESEARCH,4000204942,60000.00
Department for Education,DEPARTMENT FOR EDUCATION,16/04/2015,Grants,Free School Group,Grants to third sector organisations / not for profit organisations and other businesses,TEMPLE LEARNING ACADEMY TRUST,4000205464,60000.00
Department for Education,DEPARTMENT FOR EDUCATION,16/04/2015,Grants,Free School Group,Grants to third sector organisations / not for profit organisations and other businesses,HOE VALLEY FREE SCHOOL,4000205482,60000.00
Department for Education,DEPARTMENT FOR EDUCATION,16/04/2015,Grants,Free School Group,Grants to third sector organisations / not for profit organisations and other businesses,BOLTON UTC,4000205483,60000.00
Department for Education,DEPARTMENT FOR EDUCATION,20/04/2015,Grants,Free School Group,Grants to third sector organisations / not for profit organisations and other businesses,HAMPTON ACADEMIES TRUST,4000205627,60000.00
Department for Education,DEPARTMENT FOR EDUCATION,20/04/2015,Grants,Free School Group,Grants to third sector organisations / not for profit organisations and other businesses,GREENSHAW LEARNING TRUST,4000205630,60000.00
Department for Education,DEPARTMENT FOR EDUCATION,20/04/2015,Grants,Free School Group,Grants to third sector organisations / not for profit organisations and other businesses,THE PARTNERSHIP LEARNING TRUST,4000205641,60000.00
Department for Education,DEPARTMENT FOR EDUCATION,20/04/2015,Grants,Free School Group,Grants to third sector organisations / not for profit organisations and other businesses,THE LEIGH ACADEMIES TRUST,4000205656,60000.00
Department for Education,DEPARTMENT FOR EDUCATION,20/04/2015,Grants,Free School Group,Grants to third sector organisations / not for profit organisations and other businesses,VALLEY INVICTA ACADEMIES TRUST,4000205661,60000.00
Department for Education,DEPARTMENT FOR EDUCATION,20/04/2015,Grants,Free School Group,Grants to third sector organisations / not for profit organisations and other businesses,BRISTOL CHURCH ACADEMIES TRUST,4000205666,60000.00
Department for Education,DEPARTMENT FOR EDUCATION,20/04/2015,Grants,Free School Group,Grants to third sector organisations / not for profit organisations and other businesses,ST CLEMENT DANES SCHOOL,4000205673,60000.00
Department for Education,DEPARTMENT FOR EDUCATION,20/04/2015,Grants,Free School Group,Grants to third sector organisations / not for profit organisations and other businesses,STOKE DAMEREL COMMUNITY COLLEGE,4000205685,60000.00
Department for Education,DEPARTMENT FOR EDUCATION,20/04/2015,Grants,Free School Group,Grants to third sector organisations / not for profit organisations and other businesses,WALLINGTON COUNTY GRAMMER SCHOOL,4000205695,60000.00
Department for Education,NATIONAL COLLEGE FOR TEACHING AND LEADERSHIP AGENCY,02/04/2015,Grants,Delivery Directorate,Grants to third sector organisations / not for profit organisations and other businesses,HIBERNIA COLLEGE UK,4000204523,58380.00
Department for Education,NATIONAL COLLEGE FOR TEACHING AND LEADERSHIP AGENCY,02/04/2015,Grants,Operations Directorate,Grants to third sector organisations / not for profit organisations and other businesses,UNIVERSITY OF HUDDERSFIELD,4000204608,58320.00
Department for Education,DEPARTMENT FOR EDUCATION,07/04/2015,Grants,Academies Delivery Group,Grants to third sector organisations / not for profit organisations and other businesses,OLIVE ACADEMIES,4000204652,57968.00
Department for Education,DEPARTMENT FOR EDUCATION,02/04/2015,Grants,"Childcare, Special Educational Needs and Children's Strategy Group",Grants to third sector organisations / not for profit organisations and other businesses,AUTISM WEST MIDLANDS,4000204403,57286.88
Department for Education,DEPARTMENT FOR EDUCATION,23/04/2015,Grants,"Childcare, Special Educational Needs and Children's Strategy Group",Grants to third sector organisations / not for profit organisations and other businesses,INSTITUTE OF EDUCATION U.O.L.,4000205981,55963.70
Department for Education,DEPARTMENT FOR EDUCATION,21/04/2015,Grants,Closing the Gap Group,Grants to third sector organisations / not for profit organisations and other businesses,CADET VOCATIONAL QUALIFICATIONS ORGANISATION LTD,4000205733,55162.26
Department for Education,NATIONAL COLLEGE FOR TEACHING AND LEADERSHIP AGENCY,02/04/2015,Grants,Operations Directorate,Grants to third sector organisations / not for profit organisations and other businesses,BRADFORD COLLEGE,4000204321,55115.00
Department for Education,DEPARTMENT FOR EDUCATION,09/04/2015,Programme costs,Assessment and Curriculum and General Qualifications Group,Funding to external organisations to deliver policies (excluding consultancy),BIS DEPARTMENT FOR BUSINESS INNOVATION & SKILLS,2001101,55000.00
Department for Education,NATIONAL COLLEGE FOR TEACHING AND LEADERSHIP AGENCY,02/04/2015,Grants,Operations Directorate,Grants to third sector organisations / not for profit organisations and other businesses,LEEDS TRINITY UNIVERSITY COLLEGE,4000204198,54942.30
Department for Education,DEPARTMENT FOR EDUCATION,24/04/2015,Professional Services Other,Strategic Analysis and Research and Policy Impact Group,Research and evaluation activities,NATIONAL FOUNDATION FOR EDUCATIONAL RESEARCH,4000206089,54215.00
Department for Education,NATIONAL COLLEGE FOR TEACHING AND LEADERSHIP AGENCY,08/04/2015,Professional Services Other,Operations Directorate,"Fees / expenses of professionals, for example to implement advice or changes",NABARRO LLP,4000204831,54087.90
Department for Education,NATIONAL COLLEGE FOR TEACHING AND LEADERSHIP AGENCY,02/04/2015,Programme costs,Delivery Directorate,Funding to deliver policies (excluding consultancy) paid to third parties via a service delivery contract,SHEFFIELD HALLAM UNIVERSITY,4000204476,54000.00
Department for Education,NATIONAL COLLEGE FOR TEACHING AND LEADERSHIP AGENCY,02/04/2015,Grants,Operations Directorate,Grants to third sector organisations / not for profit organisations and other businesses,ARTHUR MELLOWS VILLAGE COLLEGE,4000204381,53820.00
Department for Education,NATIONAL COLLEGE FOR TEACHING AND LEADERSHIP AGENCY,02/04/2015,Grants,Operations Directorate,Grants to third sector organisations / not for profit organisations and other businesses,UNIVERSITY OF BOLTON,4000204501,53640.00
Department for Education,DEPARTMENT FOR EDUCATION,07/04/2015,Grants,Academies Delivery Group,"Grants paid to organisations including agencies, arms length bodies and educational establishments",THE GOOD SHEPHERD TRUST,4000204644,53500.00
Department for Education,DEPARTMENT FOR EDUCATION,20/04/2015,Learning and Development,Human Resources Group,Staff training and development programme 'Postive Action Pathway'.,CIVIL SERVICE LEARNING,4000205662,52500.00
Department for Education,DEPARTMENT FOR EDUCATION,14/04/2015,Professional Services Other,Families Group,Research and evaluation activities,TNS BMRB,4000205179,52239.60
Department for Education,DEPARTMENT FOR EDUCATION,02/04/2015,Professional Services Other,Human Resources Group,"Payment for setting up the Civil Service Human Resources (CSHR) Casework Service, which provides human resources support and advice. This service is hosted by the Ministry of Justice.",MINISTRY OF JUSTICE,4000204311,51682.80
Department for Education,NATIONAL COLLEGE FOR TEACHING AND LEADERSHIP AGENCY,02/04/2015,Grants,Delivery Directorate,Grants to third sector organisations / not for profit organisations and other businesses,UNIVERSITY OF SUSSEX,4000204347,51122.23
Department for Education,DEPARTMENT FOR EDUCATION,17/04/2015,Professional Services Other,Finance and Commercial Group,Shared corporate payroll services,SHARED SERVICES CONNECTED LTD,4000205587,50737.35
Department for Education,DEPARTMENT FOR EDUCATION,07/04/2015,Grants,Office of the Schools Commissioner Group,"Grants paid to organisations including agencies, arms length bodies and educational establishments",THE LIME TRUST,4000204670,50000.00
Department for Education,DEPARTMENT FOR EDUCATION,08/04/2015,Grants,Academies Delivery Group,Grants to third sector organisations / not for profit organisations and other businesses,DIOCESE OF CHICHESTER ACADEMY TRUST,4000204747,50000.00
Department for Education,DEPARTMENT FOR EDUCATION,16/04/2015,Grants,Academies Delivery Group,Grants to third sector organisations / not for profit organisations and other businesses,EBOR ACADEMY TRUST,4000205343,50000.00
Department for Education,DEPARTMENT FOR EDUCATION,16/04/2015,Grants,Free School Group,Grants to third sector organisations / not for profit organisations and other businesses,THE GORSE ACADEMIES TRUST,4000205366,50000.00
Department for Education,DEPARTMENT FOR EDUCATION,16/04/2015,Grants,Free School Group,Grants to third sector organisations / not for profit organisations and other businesses,ASPIRATIONS ACADEMIES TRUST,4000205367,50000.00
Department for Education,DEPARTMENT FOR EDUCATION,21/04/2015,Grants,Office of the Schools Commissioner Group,Grants to third sector organisations / not for profit organisations and other businesses,CROFTON SCHOOLS ACADEMY TRUST,4000205800,50000.00
Department for Education,DEPARTMENT FOR EDUCATION,29/04/2015,Grants,Academies Delivery Group,Grants to third sector organisations / not for profit organisations and other businesses,REACH2 STAFFORDSHIRE ACADEMY TRUST,4000206377,50000.00
Department for Education,DEPARTMENT FOR EDUCATION,29/04/2015,Grants,Academies Delivery Group,Grants to third sector organisations / not for profit organisations and other businesses,THE INSPIRATION TRUST,4000206435,50000.00
Department for Education,DEPARTMENT FOR EDUCATION,08/04/2015,Grants,Closing the Gap Group,Grants to third sector organisations / not for profit organisations and other businesses,CHALLENGER TROOP,4000204776,49669.49
Department for Education,NATIONAL COLLEGE FOR TEACHING AND LEADERSHIP AGENCY,02/04/2015,Grants,Operations Directorate,Grants to third sector organisations / not for profit organisations and other businesses,NEWCASTLE COLLEGE GROUP,4000204525,49590.00
Department for Education,DEPARTMENT FOR EDUCATION,17/04/2015,Grants,Children in Care Division,Grants to third sector organisations / not for profit organisations and other businesses,NATIONAL CHILDRENS BUREAU,4000205618,49502.60
Department for Education,STANDARDS AND TESTING AGENCY,27/04/2015,Professional Services Other,Test Development Division,"Fees / expenses of professionals, for example to implement advice or changes",PEARSON EDUCATION LTD,4000206187,49376.00
Department for Education,NATIONAL COLLEGE FOR TEACHING AND LEADERSHIP AGENCY,02/04/2015,Grants,Delivery Directorate,Grants to third sector organisations / not for profit organisations and other businesses,MANCHESTER METROPOLITAN UNIVERSITY,4000204494,48610.00
Department for Education,STANDARDS AND TESTING AGENCY,28/04/2015,Professional Services Other,Test Development Division,"Fees / expenses of professionals, for example to implement advice or changes",PEARSON EDUCATION LTD,4000206251,48126.00
Department for Education,NATIONAL COLLEGE FOR TEACHING AND LEADERSHIP AGENCY,02/04/2015,Grants,Operations Directorate,Grants to third sector organisations / not for profit organisations and other businesses,THE UNIVERSITY OF READING,4000204454,47945.00
Department for Education,NATIONAL COLLEGE FOR TEACHING AND LEADERSHIP AGENCY,02/04/2015,Grants,Operations Directorate,Grants to third sector organisations / not for profit organisations and other businesses,KING EDWARDS CONSORTIUM,4000204468,47680.00
Department for Education,DEPARTMENT FOR EDUCATION,01/04/2015,Travel,Infrastructure and Funding Directorate Support,"Staff business travel including air, coach, ferry, rail, taxi and car hire",REDFERN TRAVEL LTD,1001643,47675.02
Department for Education,NATIONAL COLLEGE FOR TEACHING AND LEADERSHIP AGENCY,02/04/2015,Grants,Delivery Directorate,Grants to third sector organisations / not for profit organisations and other businesses,UNIVERSITY OF NORTHAMPTON,4000204513,47379.60
Department for Education,NATIONAL COLLEGE FOR TEACHING AND LEADERSHIP AGENCY,02/04/2015,Grants,Operations Directorate,Grants to third sector organisations / not for profit organisations and other businesses,UNIVERSITY OF WINCHESTER,4000204422,47079.95
Department for Education,NATIONAL COLLEGE FOR TEACHING AND LEADERSHIP AGENCY,02/04/2015,Grants,Operations Directorate,Grants to third sector organisations / not for profit organisations and other businesses,CARMEL TEACHER TRAINING PARTNERSHIP,4000204455,47060.00
Department for Education,DEPARTMENT FOR EDUCATION,01/04/2015,ICT,Information Technology Group,ICT Services,EDUSERV,4000204159,46646.40
Department for Education,DEPARTMENT FOR EDUCATION,17/04/2015,ICT,Information Technology Group,ICT Services,REDWEB,4000205558,46479.00
Department for Education,DEPARTMENT FOR EDUCATION,08/04/2015,Grants,Academies Delivery Group,To clear budget deficit liability of a maintained school to facilitate conversion to an academy.,BLACKBURN WITH DARWEN BOROUGH COUNCIL,4000204797,45616.00
Department for Education,DEPARTMENT FOR EDUCATION,30/04/2015,Professional Services Other,Strategic Analysis and Research and Policy Impact Group,Research and evaluation activities,OECD,3000323,45415.20
Department for Education,DEPARTMENT FOR EDUCATION,07/04/2015,Grants,Academies Delivery Group,Grants to third sector organisations / not for profit organisations and other businesses,THE SANDHILL TRUST,4000204683,45000.00
Department for Education,DEPARTMENT FOR EDUCATION,08/04/2015,Grants,Academies Delivery Group,Grants to third sector organisations / not for profit organisations and other businesses,THE QUEEN KATHERINE SCHOOL MULTI ACADEMY TRUST,4000204758,45000.00
Department for Education,DEPARTMENT FOR EDUCATION,08/04/2015,Grants,Academies Delivery Group,Grants to third sector organisations / not for profit organisations and other businesses,PENDLE EDUCATION TRUST,4000204801,45000.00
Department for Education,DEPARTMENT FOR EDUCATION,21/04/2015,Grants,Academies Delivery Group,Grants to third sector organisations / not for profit organisations and other businesses,WILLIAM WILLET LEARNING TRUST,4000205796,45000.00
Department for Education,NATIONAL COLLEGE FOR TEACHING AND LEADERSHIP AGENCY,02/04/2015,Grants,Operations Directorate,Grants to third sector organisations / not for profit organisations and other businesses,LEEDS BECKETT UNIVERSITY,4000204309,44064.00
Department for Education,NATIONAL COLLEGE FOR TEACHING AND LEADERSHIP AGENCY,02/04/2015,Grants,Operations Directorate,Grants to third sector organisations / not for profit organisations and other businesses,LIVERPOOL HOPE UNIVERSITY,4000204320,44000.00
Department for Education,DEPARTMENT FOR EDUCATION,16/04/2015,Grants,Free School Group,Grants to third sector organisations / not for profit organisations and other businesses,NEW HACKNEY SCHOOL,4000205303,44000.00
Department for Education,DEPARTMENT FOR EDUCATION,16/04/2015,Grants,Free School Group,Grants to third sector organisations / not for profit organisations and other businesses,SIDNEY STRINGER ACADEMY,4000205382,44000.00
Department for Education,DEPARTMENT FOR EDUCATION,16/04/2015,Grants,Free School Group,Grants to third sector organisations / not for profit organisations and other businesses,SOUTH HUNSLEY SCHOOL,4000205406,44000.00
Department for Education,DEPARTMENT FOR EDUCATION,16/04/2015,Grants,Free School Group,Grants to third sector organisations / not for profit organisations and other businesses,ST MARYS CE PRIMARY SCHOOL,4000205446,44000.00
Department for Education,DEPARTMENT FOR EDUCATION,16/04/2015,Grants,Free School Group,Grants to third sector organisations / not for profit organisations and other businesses,CRYSTAL PALACE PRIMARY SCHOOL,4000205479,44000.00
Department for Education,DEPARTMENT FOR EDUCATION,16/04/2015,Grants,Free School Group,Grants to third sector organisations / not for profit organisations and other businesses,CENTRAL LEARNING PARTNERSHIP TRUST,4000205481,44000.00
Department for Education,DEPARTMENT FOR EDUCATION,16/04/2015,Grants,Free School Group,Grants to third sector organisations / not for profit organisations and other businesses,WELLSPRING ACADEMY TRUST,4000205498,44000.00
Department for Education,DEPARTMENT FOR EDUCATION,24/04/2015,Grants,Free School Group,Grants to third sector organisations / not for profit organisations and other businesses,THE LANGLEY ACADEMY TRUST,4000206078,44000.00
Department for Education,DEPARTMENT FOR EDUCATION,29/04/2015,Grants,Free School Group,Grants to third sector organisations / not for profit organisations and other businesses,KNOWLEDGE SCHOOL TRUST,4000206371,44000.00
Department for Education,DEPARTMENT FOR EDUCATION,09/04/2015,Grants,"Childcare, Special Educational Needs and Children's Strategy Group",Grants to third sector organisations / not for profit organisations and other businesses,NATIONAL DAY NURSERIES ASSOCIATION,4000204935,43920.43
Department for Education,NATIONAL COLLEGE FOR TEACHING AND LEADERSHIP AGENCY,02/04/2015,Grants,Operations Directorate,Grants to third sector organisations / not for profit organisations and other businesses,INSTITUTE OF EDUCATION U.O.L.,4000204466,43560.00
Department for Education,DEPARTMENT FOR EDUCATION,21/04/2015,Grants,Closing the Gap Group,Grants to third sector organisations / not for profit organisations and other businesses,ACER,4000205746,42994.00
Department for Education,NATIONAL COLLEGE FOR TEACHING AND LEADERSHIP AGENCY,02/04/2015,Grants,Delivery Directorate,Grants to third sector organisations / not for profit organisations and other businesses,ANGLIA RUSKIN UNIVERSITY,4000204541,42720.00
Department for Education,DEPARTMENT FOR EDUCATION,02/04/2015,Office Solutions,Information Technology Group,Office machines,MTI TECHNOLOGY LTD,4000204318,42409.86
Department for Education,NATIONAL COLLEGE FOR TEACHING AND LEADERSHIP AGENCY,02/04/2015,Grants,Operations Directorate,Grants to third sector organisations / not for profit organisations and other businesses,GLOUCESTERSHIRE ITE PARTNERSHIP,4000204511,41880.00
Department for Education,NATIONAL COLLEGE FOR TEACHING AND LEADERSHIP AGENCY,20/04/2015,Communications,Operations Directorate,Marketing services,Munro and Forster Communications Ltd,4000205638,41716.77
Department for Education,NATIONAL COLLEGE FOR TEACHING AND LEADERSHIP AGENCY,02/04/2015,Grants,Delivery Directorate,Grants to third sector organisations / not for profit organisations and other businesses,UNIVERSITY OF EAST LONDON,4000204240,41600.00
Department for Education,NATIONAL COLLEGE FOR TEACHING AND LEADERSHIP AGENCY,27/04/2015,Professional Services Other,Delivery Directorate,"Fees / expenses of professionals, for example to implement advice or changes",TEACHING LEADERS,4000206190,41035.00
Department for Education,DEPARTMENT FOR EDUCATION,24/04/2015,ICT,Information Technology Group,ICT Services,CAPGEMINI UK PLC,4000206142,40773.00
Department for Education,NATIONAL COLLEGE FOR TEACHING AND LEADERSHIP AGENCY,16/04/2015,Professional Services Other,Operations Directorate,"Fees / expenses of professionals, for example to implement advice or changes",EVERSHEDS LLP,4000205368,40581.72
Department for Education,DEPARTMENT FOR EDUCATION,08/04/2015,Programme costs,Children in Care Division,Funding to deliver policies (excluding consultancy) paid to third parties via a service delivery contract,CORAM,4000204803,40441.22
Department for Education,DEPARTMENT FOR EDUCATION,07/04/2015,Grants,Academies Delivery Group,Capital grants paid to a private sector organisation,THE GOOD SHEPHERD TRUST,4000204644,40000.00
Department for Education,DEPARTMENT FOR EDUCATION,24/04/2015,Grants,Academies Delivery Group,Capital grants paid to a private sector organisation,DIOCESE OF CHICHESTER ACADEMY TRUST,4000206090,40000.00
Department for Education,NATIONAL COLLEGE FOR TEACHING AND LEADERSHIP AGENCY,02/04/2015,Grants,Operations Directorate,Grants to third sector organisations / not for profit organisations and other businesses,DEVON COUNTY COUNCIL,4000204487,39888.00
Department for Education,DEPARTMENT FOR EDUCATION,16/04/2015,Grants,Free School Group,Grants to third sector organisations / not for profit organisations and other businesses,GLADSTONE SCHOOL,4000205365,39854.70
Department for Education,NATIONAL COLLEGE FOR TEACHING AND LEADERSHIP AGENCY,22/04/2015,Professional Services Other,Operations Directorate,"Fees / expenses of professionals, for example to implement advice or changes",BROWNE JACOBSON SOLICITORS,4000205956,38985.57
Department for Education,NATIONAL COLLEGE FOR TEACHING AND LEADERSHIP AGENCY,16/04/2015,Office Solutions,Operations Directorate,Document Storage,PROLOG,4000205404,1075.98
Department for Education,NATIONAL COLLEGE FOR TEACHING AND LEADERSHIP AGENCY,02/04/2015,Grants,Operations Directorate,Grants to third sector organisations / not for profit organisations and other businesses,UNIVERSITY OF SUNDERLAND,4000204611,38831.40
Department for Education,DEPARTMENT FOR EDUCATION,02/04/2015,Professional Services Consultancy and Contingent Labour,Human Resources Group,"Payment for delivering the Civil Service Human Resources (CSHR) Casework Service, which provides human resources support and advice from December 2014 to March 2015. This service is hosted by the Ministry of Justice.",MINISTRY OF JUSTICE,4000204311,38621.00
Department for Education,DEPARTMENT FOR EDUCATION,15/04/2015,Professional Services Other,"Childcare, Special Educational Needs and Children's Strategy Group","Fees / expenses of professionals, for example to implement advice or changes",MOTT MACDONALD LTD,4000205279,38569.99
Department for Education,NATIONAL COLLEGE FOR TEACHING AND LEADERSHIP AGENCY,02/04/2015,Grants,Delivery Directorate,Grants to third sector organisations / not for profit organisations and other businesses,KINGSTON UNIVERSITY,4000204417,38240.00
Department for Education,NATIONAL COLLEGE FOR TEACHING AND LEADERSHIP AGENCY,16/04/2015,Professional Services Other,Delivery Directorate,"Fees / expenses of professionals, for example to implement advice or changes",MM TELEPERFORMANCE,4000205369,38210.00
Department for Education,NATIONAL COLLEGE FOR TEACHING AND LEADERSHIP AGENCY,02/04/2015,Grants,Operations Directorate,Grants to third sector organisations / not for profit organisations and other businesses,KINGSBRIDGE NLC WIGAN,4000204491,38160.00
Department for Education,DEPARTMENT FOR EDUCATION,01/04/2015,Professional Services Other,Strategic Analysis and Research and Policy Impact Group,Research and evaluation activities,SHEFFIELD HALLAM UNIVERSITY,4000204074,37763.00
Department for Education,DEPARTMENT FOR EDUCATION,22/04/2015,Grants,Families Group,Grants to local authorities outside aggregate external funding or aggregate exchequer grant,OXFORDSHIRE COUNTY COUNCIL,4000205945,37650.00
Department for Education,NATIONAL COLLEGE FOR TEACHING AND LEADERSHIP AGENCY,10/04/2015,Programme costs,Delivery Directorate,Funding to deliver policies (excluding consultancy) paid to third parties via a service delivery contract,NATIONAL PORTAGE ASSOCIATION,4000204984,37608.85
Department for Education,NATIONAL COLLEGE FOR TEACHING AND LEADERSHIP AGENCY,02/04/2015,Grants,Operations Directorate,Grants to third sector organisations / not for profit organisations and other businesses,CANTERBURY CHRIST CHURCH UNIVERSITY,4000204570,36840.00
Department for Education,NATIONAL COLLEGE FOR TEACHING AND LEADERSHIP AGENCY,02/04/2015,Grants,Operations Directorate,Grants to third sector organisations / not for profit organisations and other businesses,SUFFOLK COUNTY COUNCIL,4000204251,36800.00
Department for Education,DEPARTMENT FOR EDUCATION,21/04/2015,Grants,"Childcare, Special Educational Needs and Children's Strategy Group",Grants to third sector organisations / not for profit organisations and other businesses,INSTITUTE OF WELLBEING LTD,4000205728,36793.22
Department for Education,DEPARTMENT FOR EDUCATION,14/04/2015,Facilities,Finance and Commercial Group - Property Asset Management,Rent,UNIVERSITY OF NOTTINGHAM,4000205131,36583.50
Department for Education,NATIONAL COLLEGE FOR TEACHING AND LEADERSHIP AGENCY,02/04/2015,Grants,Operations Directorate,Grants to third sector organisations / not for profit organisations and other businesses,BOURNEMOUTH POOLE & DORSET EAST SECONDARY,4000204390,36530.00
Department for Education,NATIONAL COLLEGE FOR TEACHING AND LEADERSHIP AGENCY,02/04/2015,Grants,Operations Directorate,Grants to third sector organisations / not for profit organisations and other businesses,KENT & MEDWAY TRAINING,4000204522,35440.00
Department for Education,DEPARTMENT FOR EDUCATION,21/04/2015,Grants,Children's Services and Departmental Strategy Safeguarding Group,Grants to third sector organisations / not for profit organisations and other businesses,INTERNATIONAL SOCIAL SERVICE OF THE UNITED KINGDOM,4000205833,35353.25
Department for Education,DEPARTMENT FOR EDUCATION,20/04/2015,Professional Services Consultancy and Contingent Labour,Information Technology Group,"Advisory services including fees, travel and expenses",MICROSOFT LTD,4000205688,35208.00
Department for Education,NATIONAL COLLEGE FOR TEACHING AND LEADERSHIP AGENCY,02/04/2015,Grants,Operations Directorate,Grants to third sector organisations / not for profit organisations and other businesses,EDGE HILL UNIVERSITY,4000204229,35140.00
Department for Education,DEPARTMENT FOR EDUCATION,17/04/2015,ICT,Information Technology Group,Partial payment for IT hardware / consumables,ATKINS MANTIX LTD,4000205605,35094.60
Department for Education,DEPARTMENT FOR EDUCATION,24/04/2015,ICT,Information Technology Group,Partial payment for IT hardware / consumables,ATKINS MANTIX LTD,4000206171,35094.60
Department for Education,DEPARTMENT FOR EDUCATION,01/04/2015,Travel,Children's Services and Departmental Strategy Directorate Support,"Staff business travel including air, coach, ferry, rail, taxi and car hire",REDFERN TRAVEL LTD,1001644,35094.44
Department for Education,NATIONAL COLLEGE FOR TEACHING AND LEADERSHIP AGENCY,02/04/2015,Grants,Operations Directorate,Grants to third sector organisations / not for profit organisations and other businesses,ESSEX COUNTY COUNCIL,4000204488,35040.00
Department for Education,DEPARTMENT FOR EDUCATION,20/04/2015,Learning and Development,Education Standards Directorate,Staff training and development programme 'Postive Action Pathway'.,CIVIL SERVICE LEARNING,4000205662,35000.00
Department for Education,DEPARTMENT FOR EDUCATION,20/04/2015,Learning and Development,Infrastructure and Funding Directorate Support,Staff training and development programme 'Postive Action Pathway'.,CIVIL SERVICE LEARNING,4000205662,35000.00
Department for Education,NATIONAL COLLEGE FOR TEACHING AND LEADERSHIP AGENCY,02/04/2015,Grants,Operations Directorate,Grants to third sector organisations / not for profit organisations and other businesses,UNIVERSITY OF PLYMOUTH,4000204348,34654.50
Department for Education,DEPARTMENT FOR EDUCATION,16/04/2015,ICT,Information Technology Group,ICT Software,AUTOMATED INTELLIGENCE,4000205390,34473.60
Department for Education,DEPARTMENT FOR EDUCATION,22/04/2015,Facilities,Finance and Commercial Group - Property Asset Management,Property management,INTERSERVE FACILITIES MANAGEMENT LTD,4000205888,34446.67
Department for Education,DEPARTMENT FOR EDUCATION,01/04/2015,Travel,Systems and Accountability Group,"Staff business travel including air, coach, ferry, rail, taxi and car hire",REDFERN TRAVEL LTD,1001650,34380.36
Department for Education,NATIONAL COLLEGE FOR TEACHING AND LEADERSHIP AGENCY,02/04/2015,Grants,Operations Directorate,Grants to third sector organisations / not for profit organisations and other businesses,MANCHESTER METROPOLITAN UNIVERSITY,4000204494,34380.00
Department for Education,DEPARTMENT FOR EDUCATION,20/04/2015,Professional Services Consultancy and Contingent Labour,Children's Services and Departmental Strategy Safeguarding Group,"Advisory services including fees, travel and expenses",BURGES SALMON,4000205645,34367.42
Department for Education,NATIONAL COLLEGE FOR TEACHING AND LEADERSHIP AGENCY,09/04/2015,Programme costs,Delivery Directorate,Funding to deliver policies (excluding consultancy) paid to third parties via a service delivery contract,I CAN CHARITY,4000204853,34363.27
Department for Education,DEPARTMENT FOR EDUCATION,09/04/2015,Grants,Closing the Gap Group,Grants to third sector organisations / not for profit organisations and other businesses,KNOWSLEY SKILLS ACADEMY,4000204933,34285.68
Department for Education,DEPARTMENT FOR EDUCATION,22/04/2015,Facilities,Finance and Commercial Group - Property Asset Management,Property management,METHODS CONSULTING LTD,4000205929,34272.00
Department for Education,DEPARTMENT FOR EDUCATION,17/04/2015,Professional Services Consultancy and Contingent Labour,Information Technology Group,Costs related to temporary workers,ALPINE CONSORTIUM,4000205555,33859.92
Department for Education,NATIONAL COLLEGE FOR TEACHING AND LEADERSHIP AGENCY,02/04/2015,Grants,Delivery Directorate,Grants to third sector organisations / not for profit organisations and other businesses,BRADFORD COLLEGE,4000204321,33600.00
Department for Education,DEPARTMENT FOR EDUCATION,17/04/2015,Communications,Children in Care Division,Marketing services,KINDRED AGENCY LTD,4000205574,33600.00
Department for Education,DEPARTMENT FOR EDUCATION,01/04/2015,Communications,Children in Care Division,"Publicity, advertising, media advertising campaigns (excluding recruitment adverts)",CARAT,4000204128,33590.10
Department for Education,NATIONAL COLLEGE FOR TEACHING AND LEADERSHIP AGENCY,02/04/2015,Grants,Operations Directorate,Grants to third sector organisations / not for profit organisations and other businesses,CORNWALL SCITT,4000204423,32880.00
Department for Education,NATIONAL COLLEGE FOR TEACHING AND LEADERSHIP AGENCY,02/04/2015,Grants,Operations Directorate,Grants to third sector organisations / not for profit organisations and other businesses,UNIVERSITY OF CHESTER,4000204365,32634.90
Department for Education,DEPARTMENT FOR EDUCATION,10/04/2015,Professional Services Consultancy and Contingent Labour,Finance and Commercial Group,"Fees / expenses of professionals such as auditors, accountants, lawyers, etc. engaged to provide advice or opinion on how to affect something",PRICE WATERHOUSE COOPERS LLP,4000205028,32360.00
Department for Education,NATIONAL COLLEGE FOR TEACHING AND LEADERSHIP AGENCY,02/04/2015,Grants,Operations Directorate,Grants to third sector organisations / not for profit organisations and other businesses,NOTTINGHAM TRENT UNIVERSITY,4000204289,32313.60
Department for Education,DEPARTMENT FOR EDUCATION,23/04/2015,Programme costs,"Childcare, Special Educational Needs and Children's Strategy Group",Funding to deliver policies (excluding consultancy) paid to third parties via a service delivery contract,FAMILY RIGHTS GROUP LTD,4000205988,32268.31
Department for Education,NATIONAL COLLEGE FOR TEACHING AND LEADERSHIP AGENCY,02/04/2015,Grants,Operations Directorate,Grants to third sector organisations / not for profit organisations and other businesses,UNIVERSITY OF BEDFORDSHIRE,4000204358,31951.80
Department for Education,DEPARTMENT FOR EDUCATION,20/04/2015,Facilities,Finance and Commercial Group - Property Asset Management,Workplace car parking levy,NOTTINGHAM CITY COUNCIL,4000205636,31875.00
Department for Education,NATIONAL COLLEGE FOR TEACHING AND LEADERSHIP AGENCY,02/04/2015,Grants,Operations Directorate,Grants to third sector organisations / not for profit organisations and other businesses,THE ACADEMY AT SHOTTON HALL,4000204401,31760.00
Department for Education,DEPARTMENT FOR EDUCATION,29/04/2015,Programme costs,"Childcare, Special Educational Needs and Children's Strategy Group",Funding to deliver policies (excluding consultancy) paid to third parties via a service delivery contract,ONE PLUS ONE,4000206399,31681.98
Department for Education,NATIONAL COLLEGE FOR TEACHING AND LEADERSHIP AGENCY,02/04/2015,Grants,Operations Directorate,Grants to third sector organisations / not for profit organisations and other businesses,UNIVERSITY OF NORTHAMPTON,4000204513,31600.00
Department for Education,DEPARTMENT FOR EDUCATION,22/04/2015,Grants,Families Group,Grants to local authorities outside aggregate external funding or aggregate exchequer grant,CALDERDALE MBC,4000205866,31566.00
Department for Education,NATIONAL COLLEGE FOR TEACHING AND LEADERSHIP AGENCY,02/04/2015,Grants,Operations Directorate,Grants to third sector organisations / not for profit organisations and other businesses,EAST LINCOLNSHIRE DRB,4000204509,31290.00
Department for Education,DEPARTMENT FOR EDUCATION,29/04/2015,Professional Services Other,"Childcare, Special Educational Needs and Children's Strategy Group","Fees / expenses of professionals, for example to implement advice or changes",MOTT MACDONALD LTD,4000206388,31232.06
Department for Education,DEPARTMENT FOR EDUCATION,09/04/2015,Grants,Assessment and Curriculum and General Qualifications Group,Grants to third sector organisations / not for profit organisations and other businesses,UNIVERSITY OF GLOUCESTERSHIRE,4000204917,31108.50
Department for Education,DEPARTMENT FOR EDUCATION,23/04/2015,Programme costs,"Childcare, Special Educational Needs and Children's Strategy Group",Funding to deliver policies (excluding consultancy) paid to third parties via a service delivery contract,UNIVERSITY OF ESSEX,4000206012,30950.00
Department for Education,NATIONAL COLLEGE FOR TEACHING AND LEADERSHIP AGENCY,02/04/2015,Grants,Operations Directorate,Grants to third sector organisations / not for profit organisations and other businesses,OUTSTANDING SCHOOLS SCITT,4000204579,30540.00
Department for Education,NATIONAL COLLEGE FOR TEACHING AND LEADERSHIP AGENCY,02/04/2015,Grants,Delivery Directorate,Grants to third sector organisations / not for profit organisations and other businesses,EDGE HILL UNIVERSITY,4000204229,30400.00
Department for Education,NATIONAL COLLEGE FOR TEACHING AND LEADERSHIP AGENCY,02/04/2015,Grants,Operations Directorate,Grants to third sector organisations / not for profit organisations and other businesses,ARK SCHOOLS,4000204552,30360.00
Department for Education,DEPARTMENT FOR EDUCATION,08/04/2015,Grants,Office of the Schools Commissioner Group,Grants to third sector organisations / not for profit organisations and other businesses,SHELLEY ACADEMY TRUST,4000204755,30320.00
Department for Education,NATIONAL COLLEGE FOR TEACHING AND LEADERSHIP AGENCY,08/04/2015,ICT,Operations Directorate,ICT Services,ALITO LTD T/A PROACTIS PUBLIC SECTOR,4000204737,30000.00
Department for Education,DEPARTMENT FOR EDUCATION,08/04/2015,Grants,Free School Group,Grants to third sector organisations / not for profit organisations and other businesses,THE GLOBAL ACADEMY UTC,4000204744,30000.00
Department for Education,DEPARTMENT FOR EDUCATION,16/04/2015,Grants,Free School Group,Grants to third sector organisations / not for profit organisations and other businesses,KINGSTON EDUCATIONAL TRUST,4000205356,30000.00
Department for Education,DEPARTMENT FOR EDUCATION,16/04/2015,Grants,Free School Group,Grants to third sector organisations / not for profit organisations and other businesses,THE PARTNERSHIP LEARNING TRUST,4000205447,30000.00
Department for Education,NATIONAL COLLEGE FOR TEACHING AND LEADERSHIP AGENCY,02/04/2015,Grants,Delivery Directorate,Grants to third sector organisations / not for profit organisations and other businesses,THE UNIVERSITY OF READING,4000204454,29896.20
Department for Education,NATIONAL COLLEGE FOR TEACHING AND LEADERSHIP AGENCY,02/04/2015,Grants,Delivery Directorate,Grants to third sector organisations / not for profit organisations and other businesses,SOMERSET COUNTY COUNCIL,4000204515,29700.00
Department for Education,NATIONAL COLLEGE FOR TEACHING AND LEADERSHIP AGENCY,10/04/2015,Professional Services Other,Operations Directorate,Research and evaluation activities,BMG RESEARCH,4000204951,29550.00
Department for Education,NATIONAL COLLEGE FOR TEACHING AND LEADERSHIP AGENCY,02/04/2015,Grants,Operations Directorate,Grants to third sector organisations / not for profit organisations and other businesses,UNIVERSITY OF DERBY,4000204312,29536.65
Department for Education,NATIONAL COLLEGE FOR TEACHING AND LEADERSHIP AGENCY,02/04/2015,Grants,Operations Directorate,Grants to third sector organisations / not for profit organisations and other businesses,BROMLEY SCHOOLS COLLEGIATE,4000204391,29040.00
Department for Education,NATIONAL COLLEGE FOR TEACHING AND LEADERSHIP AGENCY,02/04/2015,Grants,Delivery Directorate,Grants to third sector organisations / not for profit organisations and other businesses,UNIVERSITY OF GREENWICH,4000204516,28889.20
Department for Education,STANDARDS AND TESTING AGENCY,13/04/2015,Programme costs,Test Operations Division,Funding to deliver policies (excluding consultancy) paid to third parties via a service delivery contract,BSS,4000205059,28762.08
Department for Education,DEPARTMENT FOR EDUCATION,01/04/2015,Travel,Finance and Commercial Group,"Staff business travel including air, coach, ferry, rail, taxi and car hire",REDFERN TRAVEL LTD,1001646,28761.14
Department for Education,DEPARTMENT FOR EDUCATION,09/04/2015,Grants,Academies Delivery Group,"Grants paid to organisations including agencies, arms length bodies and educational establishments",FASNA,4000204860,28698.33
Department for Education,DEPARTMENT FOR EDUCATION,21/04/2015,Grants,Children in Care Division,Grants to third sector organisations / not for profit organisations and other businesses,THE SHARE FOUNDATION 3RD PARTY TRUST,4000205815,28600.00
Department for Education,DEPARTMENT FOR EDUCATION,09/04/2015,Grants,"Childcare, Special Educational Needs and Children's Strategy Group",Grants to third sector organisations / not for profit organisations and other businesses,INSTITUTE OF EDUCATION U.O.L.,4000204929,28551.64
Department for Education,DEPARTMENT FOR EDUCATION,22/04/2015,Grants,Families Group,Grants to local authorities outside aggregate external funding or aggregate exchequer grant,LONDON BOROUGH OF TOWER HAMLETS COUNCIL,4000205850,28207.00
Department for Education,DEPARTMENT FOR EDUCATION,09/04/2015,Grants,Children's Services and Departmental Strategy Safeguarding Group,Grants to third sector organisations / not for profit organisations and other businesses,NWG NETWORK,4000204877,27920.27
Department for Education,NATIONAL COLLEGE FOR TEACHING AND LEADERSHIP AGENCY,02/04/2015,Grants,Operations Directorate,Grants to third sector organisations / not for profit organisations and other businesses,BATH SPA UNIVERSITY,4000204505,27630.00
Department for Education,NATIONAL COLLEGE FOR TEACHING AND LEADERSHIP AGENCY,02/04/2015,Grants,Operations Directorate,Grants to third sector organisations / not for profit organisations and other businesses,THE COLLEGE OF ST MARK & ST JOHN,4000204532,27600.00
Department for Education,NATIONAL COLLEGE FOR TEACHING AND LEADERSHIP AGENCY,02/04/2015,Grants,Operations Directorate,Grants to third sector organisations / not for profit organisations and other businesses,EDGE HILL UNIVERSITY,4000204229,27360.00
Department for Education,DEPARTMENT FOR EDUCATION,22/04/2015,ICT,Systems and Accountability Group,ICT Services,SCISYS UK LTD,4000205855,27000.00
Department for Education,DEPARTMENT FOR EDUCATION,17/04/2015,Grants,Academies Delivery Group,Grants to third sector organisations / not for profit organisations and other businesses,BALDWINS GATE CE VC PRIMARY SCHOOL,4000205531,27000.00
Department for Education,DEPARTMENT FOR EDUCATION,29/04/2015,Grants,Academies Delivery Group,Grants to third sector organisations / not for profit organisations and other businesses,SANDRINGHAM SCHOOL,4000206391,27000.00
Department for Education,DEPARTMENT FOR EDUCATION,09/04/2015,Grants,Children's Services and Departmental Strategy Safeguarding Group,Grants to local authorities / other establishments within aggregate external funding or aggregate exchequer grant,HERTFORDSHIRE,4000204922,26917.51
Department for Education,DEPARTMENT FOR EDUCATION,23/04/2015,ICT,Information Technology Group,ICT Services,ATKINS MANTIX LTD,4000205989,26854.20
Department for Education,DEPARTMENT FOR EDUCATION,24/04/2015,ICT,Information Technology Group,ICT Services,ATKINS MANTIX LTD,4000206171,26854.20
Department for Education,DEPARTMENT FOR EDUCATION,16/04/2015,Professional Services Consultancy and Contingent Labour,Finance and Commercial Group,"Fees / expenses of professionals such as auditors, accountants, lawyers, etc. engaged to provide advice or opinion on how to affect something",PRICE WATERHOUSE COOPERS LLP,4000205308,26672.00
Department for Education,DEPARTMENT FOR EDUCATION,23/04/2015,Miscellaneous Expenditure,"Childcare, Special Educational Needs and Children's Strategy Group",Tribunals and trials service fees,HMCTS HM COURTS & TRIBUNALS SERVICE,4000206045,26470.00
Department for Education,NATIONAL COLLEGE FOR TEACHING AND LEADERSHIP AGENCY,07/04/2015,Grants,Operations Directorate,Grants to third sector organisations / not for profit organisations and other businesses,ROYAL SOCIETY OF CHEMISTRY,4000204687,26421.10
Department for Education,NATIONAL COLLEGE FOR TEACHING AND LEADERSHIP AGENCY,01/04/2015,Programme costs,Research and Development Directorate,Funding to deliver policies (excluding consultancy) paid to third parties via a service delivery contract,CFBT EDUCATION TRUST,4000204136,26380.00
Department for Education,NATIONAL COLLEGE FOR TEACHING AND LEADERSHIP AGENCY,02/04/2015,Grants,Operations Directorate,Grants to third sector organisations / not for profit organisations and other businesses,WAKEFIELD  DISTRICT COUNCIL,4000204267,26350.00
Department for Education,NATIONAL COLLEGE FOR TEACHING AND LEADERSHIP AGENCY,10/04/2015,ICT,Operations Directorate,ICT Services,TEXUNA TECHNOLOGIES,4000205000,26146.20
Department for Education,NATIONAL COLLEGE FOR TEACHING AND LEADERSHIP AGENCY,02/04/2015,Professional Services Other,Operations Directorate,"Fees / expenses of professionals, for example to implement advice or changes",BROWNE JACOBSON SOLICITORS,4000204373,26112.00
Department for Education,DEPARTMENT FOR EDUCATION,21/04/2015,Grants,Closing the Gap Group,Grants to third sector organisations / not for profit organisations and other businesses,LONG ROAD SIXTH FORM COLLEGE,4000205790,26100.00
Department for Education,DEPARTMENT FOR EDUCATION,24/04/2015,ICT,Children in Care Division,ICT Services,CAPGEMINI UK PLC,4000206142,25980.73
Department for Education,DEPARTMENT FOR EDUCATION,02/04/2015,Communications,"Childcare, Special Educational Needs and Children's Strategy Group",Marketing services,CARAT,4000204304,25945.26
Department for Education,DEPARTMENT FOR EDUCATION,30/04/2015,Professional Services Other,Children in Care Division,Research and evaluation activities,UNIVERSITY OF BRISTOL,4000206559,25484.00
Department for Education,NATIONAL COLLEGE FOR TEACHING AND LEADERSHIP AGENCY,02/04/2015,Grants,Operations Directorate,Grants to third sector organisations / not for profit organisations and other businesses,GRAND UNION TRAINING PARTNERSHIP,4000204433,25440.00
Department for Education,NATIONAL COLLEGE FOR TEACHING AND LEADERSHIP AGENCY,02/04/2015,Grants,Delivery Directorate,Grants to third sector organisations / not for profit organisations and other businesses,UNIVERSITY OF WARWICK,4000204359,25122.60
Department for Education,DEPARTMENT FOR EDUCATION,07/04/2015,Grants,Academies Delivery Group,Grants to third sector organisations / not for profit organisations and other businesses,CLIFFORD BRIDGE PRIMARY SCHOOL,4000204635,25000.00
Department for Education,DEPARTMENT FOR EDUCATION,07/04/2015,Grants,Academies Delivery Group,Grants to third sector organisations / not for profit organisations and other businesses,KENT CATHOLIC SCHOOLS PARTNERSHIP,4000204640,25000.00
Department for Education,DEPARTMENT FOR EDUCATION,07/04/2015,Grants,Academies Delivery Group,Grants to third sector organisations / not for profit organisations and other businesses,LINCOLN ANGLICAN ACADEMY TRUST,4000204656,25000.00
Department for Education,DEPARTMENT FOR EDUCATION,07/04/2015,Grants,Academies Delivery Group,Grants to third sector organisations / not for profit organisations and other businesses,VICTORIA JUNIOR SCHOOL,4000204667,25000.00
Department for Education,DEPARTMENT FOR EDUCATION,07/04/2015,Grants,Academies Delivery Group,Grants to third sector organisations / not for profit organisations and other businesses,THE BERKELEY PRIMARY SCHOOL,4000204668,25000.00
Department for Education,DEPARTMENT FOR EDUCATION,07/04/2015,Grants,Academies Delivery Group,Grants to third sector organisations / not for profit organisations and other businesses,NEW FORD PRIMARY SCHOOL,4000204673,25000.00
Department for Education,DEPARTMENT FOR EDUCATION,07/04/2015,Grants,Academies Delivery Group,Grants to third sector organisations / not for profit organisations and other businesses,PRENDERGAST VALE SCHOOL,4000204685,25000.00
Department for Education,DEPARTMENT FOR EDUCATION,07/04/2015,Grants,Academies Delivery Group,Grants to third sector organisations / not for profit organisations and other businesses,UNIVERSITY OF BRIGHTON,4000204689,25000.00
Department for Education,DEPARTMENT FOR EDUCATION,07/04/2015,Grants,Academies Delivery Group,Grants to third sector organisations / not for profit organisations and other businesses,YARLSIDE NURSERY & PRIMARY SCHOOL,4000204691,25000.00
Department for Education,DEPARTMENT FOR EDUCATION,07/04/2015,Grants,Academies Delivery Group,Grants to third sector organisations / not for profit organisations and other businesses,OLD BEXLEY CE PRIMARY SCHOOL,4000204692,25000.00
Department for Education,DEPARTMENT FOR EDUCATION,07/04/2015,Grants,Academies Delivery Group,Grants to third sector organisations / not for profit organisations and other businesses,ST ROBERTS CATHOLIC PRIMARY SCHOOL,4000204696,25000.00
Department for Education,DEPARTMENT FOR EDUCATION,07/04/2015,Grants,Academies Delivery Group,Grants to third sector organisations / not for profit organisations and other businesses,ST JOSEPHS CATHOLIC PRIMARY SCHOOL,4000204703,25000.00
Department for Education,DEPARTMENT FOR EDUCATION,07/04/2015,Grants,Academies Delivery Group,Grants to third sector organisations / not for profit organisations and other businesses,PRENDERGAST LADYWELL SCHOOL,4000204706,25000.00
Department for Education,DEPARTMENT FOR EDUCATION,07/04/2015,Grants,Academies Delivery Group,Grants to third sector organisations / not for profit organisations and other businesses,ST MARYS CATHOLIC PRIMARY SCHOOL,4000204707,25000.00
Department for Education,DEPARTMENT FOR EDUCATION,08/04/2015,Grants,Academies Delivery Group,Grants to third sector organisations / not for profit organisations and other businesses,BARNHAM PRIMARY SCHOOL,4000204750,25000.00
Department for Education,DEPARTMENT FOR EDUCATION,08/04/2015,Grants,Academies Delivery Group,Grants to third sector organisations / not for profit organisations and other businesses,HARROGATE NEW PARK COMMUNITY PRIMARY SCHOOL,4000204753,25000.00
Department for Education,DEPARTMENT FOR EDUCATION,08/04/2015,Grants,Academies Delivery Group,Grants to third sector organisations / not for profit organisations and other businesses,THE RUSSETT SCHOOL,4000204754,25000.00
Department for Education,DEPARTMENT FOR EDUCATION,08/04/2015,Grants,Academies Delivery Group,Grants to third sector organisations / not for profit organisations and other businesses,KINGSMEAD SCHOOL 4070,4000204756,25000.00
Department for Education,DEPARTMENT FOR EDUCATION,08/04/2015,Grants,Academies Delivery Group,Grants to third sector organisations / not for profit organisations and other businesses,OXTED SCHOOL,4000204757,25000.00
Department for Education,DEPARTMENT FOR EDUCATION,08/04/2015,Grants,Academies Delivery Group,Grants to third sector organisations / not for profit organisations and other businesses,CASTLE PARK SCHOOL,4000204759,25000.00
Department for Education,DEPARTMENT FOR EDUCATION,08/04/2015,Grants,Academies Delivery Group,Grants to third sector organisations / not for profit organisations and other businesses,EVELEIGH LINK ACADEMY TRUST T/A MALTESE ROAD PRIMARY SCHOOL,4000204760,25000.00
Department for Education,DEPARTMENT FOR EDUCATION,08/04/2015,Grants,Academies Delivery Group,Grants to third sector organisations / not for profit organisations and other businesses,AT MARYS CATHOLIC INFANT SCHOOL,4000204787,25000.00
Department for Education,DEPARTMENT FOR EDUCATION,08/04/2015,Grants,Academies Delivery Group,Grants to third sector organisations / not for profit organisations and other businesses,MALMESBURY PARK PRIMARY SCHOOL,4000204789,25000.00
Department for Education,DEPARTMENT FOR EDUCATION,08/04/2015,Grants,Academies Delivery Group,Grants to third sector organisations / not for profit organisations and other businesses,ENQUIRE LEARNING TRUST,4000204815,25000.00
Department for Education,DEPARTMENT FOR EDUCATION,08/04/2015,Grants,Academies Delivery Group,Grants to third sector organisations / not for profit organisations and other businesses,ST MARTIN DE PORRES PRIMARY SCHOOL,4000204817,25000.00
Department for Education,DEPARTMENT FOR EDUCATION,08/04/2015,Grants,Academies Delivery Group,Grants to third sector organisations / not for profit organisations and other businesses,ST CHRISTOPHERS COFE MULTI ACADEMY TRUST,4000204825,25000.00
Department for Education,DEPARTMENT FOR EDUCATION,13/04/2015,Grants,Academies Delivery Group,Grants to third sector organisations / not for profit organisations and other businesses,ST MARYS RC JUNIOR SCHOOL CROYDON,4000205105,25000.00
Department for Education,DEPARTMENT FOR EDUCATION,13/04/2015,Grants,Academies Delivery Group,Grants to third sector organisations / not for profit organisations and other businesses,HOLY TRINITY LAMORBEY CE PRIMARY SCHOOL,4000205106,25000.00
Department for Education,DEPARTMENT FOR EDUCATION,13/04/2015,Grants,Academies Delivery Group,Grants to third sector organisations / not for profit organisations and other businesses,HILLSGROVE PRIMARY SCHOOL,4000205107,25000.00
Department for Education,DEPARTMENT FOR EDUCATION,13/04/2015,Grants,Academies Delivery Group,Grants to third sector organisations / not for profit organisations and other businesses,ST PAULINUS CE PRIMARY SCHOOL,4000205108,25000.00
Department for Education,DEPARTMENT FOR EDUCATION,13/04/2015,Grants,Academies Delivery Group,Grants to third sector organisations / not for profit organisations and other businesses,OULTON FIRST SCHOOL,4000205109,25000.00
Department for Education,DEPARTMENT FOR EDUCATION,13/04/2015,Grants,Academies Delivery Group,Grants to third sector organisations / not for profit organisations and other businesses,CHRIST CHURCH FIRST SCHOOL,4000205110,25000.00
Department for Education,DEPARTMENT FOR EDUCATION,14/04/2015,Grants,Academies Delivery Group,Grants to third sector organisations / not for profit organisations and other businesses,OLDBURY WELLS SCHOOL,4000205144,25000.00
Department for Education,DEPARTMENT FOR EDUCATION,14/04/2015,Grants,Academies Delivery Group,Grants to third sector organisations / not for profit organisations and other businesses,TOWER HILL PRIMARY SCHOOL,4000205145,25000.00
Department for Education,DEPARTMENT FOR EDUCATION,14/04/2015,Grants,Academies Delivery Group,"Grants paid to organisations including agencies, arms length bodies and educational establishments",WOLVERCOTE PRIMARY SCHOOL,4000205146,25000.00
Department for Education,DEPARTMENT FOR EDUCATION,14/04/2015,Grants,Academies Delivery Group,Grants to third sector organisations / not for profit organisations and other businesses,ACADEMY TRANSFORMATION TRUST,4000205165,25000.00
Department for Education,DEPARTMENT FOR EDUCATION,14/04/2015,Grants,Academies Delivery Group,Grants to third sector organisations / not for profit organisations and other businesses,THE DIOCESE OF COVENTRY,4000205175,25000.00
Department for Education,DEPARTMENT FOR EDUCATION,16/04/2015,Grants,Assessment and Curriculum and General Qualifications Group,Grants to third sector organisations / not for profit organisations and other businesses,DEBATE MATE,4000205357,25000.00
Department for Education,DEPARTMENT FOR EDUCATION,16/04/2015,Grants,Free School Group,Grants to third sector organisations / not for profit organisations and other businesses,THE LIPA SIXTH FORM COLLEGE,4000205410,25000.00
Department for Education,DEPARTMENT FOR EDUCATION,17/04/2015,Grants,Academies Delivery Group,Grants to third sector organisations / not for profit organisations and other businesses,NCHS THE SCIENCE COLLEGE,4000205519,25000.00
Department for Education,DEPARTMENT FOR EDUCATION,17/04/2015,Grants,Academies Delivery Group,Grants to third sector organisations / not for profit organisations and other businesses,CLAYTON HALL BUSINESS & LANGUAGE COLLEGE,4000205520,25000.00
Department for Education,DEPARTMENT FOR EDUCATION,17/04/2015,Grants,Assessment and Curriculum and General Qualifications Group,Grants to third sector organisations / not for profit organisations and other businesses,YOUTH SPORT TRUST,4000205525,25000.00
Department for Education,DEPARTMENT FOR EDUCATION,17/04/2015,Grants,Academies Delivery Group,Grants to third sector organisations / not for profit organisations and other businesses,THE QUEEN KATHERINE SCHOOL MULTI ACADEMY TRUST,4000205529,25000.00
Department for Education,DEPARTMENT FOR EDUCATION,17/04/2015,Grants,Academies Delivery Group,Grants to third sector organisations / not for profit organisations and other businesses,MEADOWS PRIMARY SCHOOL,4000205530,25000.00
Department for Education,DEPARTMENT FOR EDUCATION,17/04/2015,Grants,Academies Delivery Group,Grants to third sector organisations / not for profit organisations and other businesses,BURNT ASH PRIMARY SCHOOL,4000205544,25000.00
Department for Education,DEPARTMENT FOR EDUCATION,17/04/2015,Grants,Academies Delivery Group,Grants to third sector organisations / not for profit organisations and other businesses,HEMPSTALLS PRIMARY SCHOOL,4000205556,25000.00
Department for Education,DEPARTMENT FOR EDUCATION,20/04/2015,Grants,Free School Group,Grants to third sector organisations / not for profit organisations and other businesses,THE BOXING ACADEMY,4000205629,25000.00
Department for Education,DEPARTMENT FOR EDUCATION,21/04/2015,Grants,Academies Delivery Group,Grants to third sector organisations / not for profit organisations and other businesses,BARRS HILL SCHOOL & COMMUNITY COLLEGE,4000205759,25000.00
Department for Education,DEPARTMENT FOR EDUCATION,21/04/2015,Grants,Academies Delivery Group,Grants to third sector organisations / not for profit organisations and other businesses,MANOR HIGH SCHOOL,4000205789,25000.00
Department for Education,DEPARTMENT FOR EDUCATION,21/04/2015,Grants,Academies Delivery Group,Grants to third sector organisations / not for profit organisations and other businesses,NEW KINGS SCHOOL,4000205793,25000.00
Department for Education,DEPARTMENT FOR EDUCATION,21/04/2015,Grants,Academies Delivery Group,Grants to third sector organisations / not for profit organisations and other businesses,BRADON FOREST SCHOOL,4000205794,25000.00
Department for Education,DEPARTMENT FOR EDUCATION,21/04/2015,Grants,Academies Delivery Group,Grants to third sector organisations / not for profit organisations and other businesses,UPTON PRIORY SCHOOL,4000205797,25000.00
Department for Education,DEPARTMENT FOR EDUCATION,21/04/2015,Grants,Academies Delivery Group,Grants to third sector organisations / not for profit organisations and other businesses,OAKLANDS PRIMARY SCHOOL BROMLEY,4000205798,25000.00
Department for Education,DEPARTMENT FOR EDUCATION,24/04/2015,Grants,Academies Delivery Group,Grants to third sector organisations / not for profit organisations and other businesses,KNAVESMIRE PRIMARY SCHOOL,4000206096,25000.00
Department for Education,DEPARTMENT FOR EDUCATION,24/04/2015,Grants,Academies Delivery Group,Grants to third sector organisations / not for profit organisations and other businesses,MILLTHORPE SCHOOL,4000206103,25000.00
Department for Education,DEPARTMENT FOR EDUCATION,24/04/2015,Grants,Free School Group,Grants to third sector organisations / not for profit organisations and other businesses,KISHARON INCLUSIVE FREE SCHOOL,4000206106,25000.00
Department for Education,DEPARTMENT FOR EDUCATION,24/04/2015,Grants,Academies Delivery Group,Grants to third sector organisations / not for profit organisations and other businesses,ST AGNES SCHOOL,4000206112,25000.00
Department for Education,DEPARTMENT FOR EDUCATION,24/04/2015,Grants,Academies Delivery Group,Grants to third sector organisations / not for profit organisations and other businesses,ASTON SPRINGWOOD PRIMARY SCHOOL,4000206114,25000.00
Department for Education,DEPARTMENT FOR EDUCATION,24/04/2015,Grants,Academies Delivery Group,Grants to third sector organisations / not for profit organisations and other businesses,PRU FOR MEDICAL NEEDS,4000206126,25000.00
Department for Education,DEPARTMENT FOR EDUCATION,24/04/2015,Grants,Assessment and Curriculum and General Qualifications Group,Grants to third sector organisations / not for profit organisations and other businesses,PSHE ASSOCIATION,4000206155,25000.00
Department for Education,DEPARTMENT FOR EDUCATION,24/04/2015,Grants,Academies Delivery Group,Grants to third sector organisations / not for profit organisations and other businesses,SCARCROFT PRIMARY SCHOOL,4000206173,25000.00
Department for Education,DEPARTMENT FOR EDUCATION,29/04/2015,Grants,Academies Delivery Group,Grants to third sector organisations / not for profit organisations and other businesses,WILLASTON PRIMARY SCHOOL,4000206378,25000.00
Department for Education,DEPARTMENT FOR EDUCATION,29/04/2015,Grants,Academies Delivery Group,Grants to third sector organisations / not for profit organisations and other businesses,THE ORCHARDS COMMUNITY MIDDLE SCHOOL,4000206379,25000.00
Department for Education,DEPARTMENT FOR EDUCATION,29/04/2015,Grants,Academies Delivery Group,Grants to third sector organisations / not for profit organisations and other businesses,THE NETHER EDGE PRIMARY SCHOOL,4000206380,25000.00
Department for Education,DEPARTMENT FOR EDUCATION,29/04/2015,Grants,Academies Delivery Group,Grants to third sector organisations / not for profit organisations and other businesses,HILL VIEW PRIMARY SCHOOL BOURNEMOUTH,4000206381,25000.00
Department for Education,DEPARTMENT FOR EDUCATION,29/04/2015,Grants,Academies Delivery Group,Grants to third sector organisations / not for profit organisations and other businesses,UPTON CROSS PRIMARY SCHOOL,4000206393,25000.00
Department for Education,DEPARTMENT FOR EDUCATION,29/04/2015,Grants,Academies Delivery Group,Grants to third sector organisations / not for profit organisations and other businesses,THE KINGSWAY SCHOOL,4000206416,25000.00
Department for Education,DEPARTMENT FOR EDUCATION,15/04/2015,Professional Services Consultancy and Contingent Labour,Information Technology Group,Costs related to temporary workers,RUSSAM GMS LTD,4000205240,24981.60
Department for Education,NATIONAL COLLEGE FOR TEACHING AND LEADERSHIP AGENCY,02/04/2015,Professional Services Other,Delivery Directorate,Research and evaluation activities,CFE LTD,4000204416,24970.00
Department for Education,NATIONAL COLLEGE FOR TEACHING AND LEADERSHIP AGENCY,02/04/2015,Grants,Operations Directorate,Grants to third sector organisations / not for profit organisations and other businesses,THE UNIVERSITY OF READING,4000204454,24786.00
Department for Education,NATIONAL COLLEGE FOR TEACHING AND LEADERSHIP AGENCY,02/04/2015,Grants,Operations Directorate,Grants to third sector organisations / not for profit organisations and other businesses,DONCASTER MBC,4000204205,24720.00
Department for Education,DEPARTMENT FOR EDUCATION,09/04/2015,Professional Services Consultancy and Contingent Labour,Information Technology Group,Costs related to temporary workers,RUSSAM GMS LTD,4000204890,24618.72
Department for Education,NATIONAL COLLEGE FOR TEACHING AND LEADERSHIP AGENCY,02/04/2015,Grants,Operations Directorate,Grants to third sector organisations / not for profit organisations and other businesses,UNIVERSITY OF HULL,4000204352,24460.00
Department for Education,NATIONAL COLLEGE FOR TEACHING AND LEADERSHIP AGENCY,02/04/2015,Grants,Delivery Directorate,Grants to third sector organisations / not for profit organisations and other businesses,LONDON METROPOLITAN UNIVERSITY,4000204317,24080.00
Department for Education,NATIONAL COLLEGE FOR TEACHING AND LEADERSHIP AGENCY,02/04/2015,Grants,Delivery Directorate,Grants to third sector organisations / not for profit organisations and other businesses,SHEFFIELD HALLAM UNIVERSITY,4000204476,23410.00
Department for Education,NATIONAL COLLEGE FOR TEACHING AND LEADERSHIP AGENCY,02/04/2015,Grants,Delivery Directorate,Grants to third sector organisations / not for profit organisations and other businesses,UNIVERSITY OF GLOUCESTERSHIRE,4000204295,22680.00
Department for Education,NATIONAL COLLEGE FOR TEACHING AND LEADERSHIP AGENCY,02/04/2015,Grants,Delivery Directorate,Grants to third sector organisations / not for profit organisations and other businesses,LIVERPOOL HOPE UNIVERSITY,4000204320,22400.00
Department for Education,NATIONAL COLLEGE FOR TEACHING AND LEADERSHIP AGENCY,02/04/2015,Grants,Delivery Directorate,Grants to third sector organisations / not for profit organisations and other businesses,UNIVERSITY OF SOUTHAMPTON,4000204424,22400.00
Department for Education,NATIONAL COLLEGE FOR TEACHING AND LEADERSHIP AGENCY,02/04/2015,Grants,Operations Directorate,Grants to third sector organisations / not for profit organisations and other businesses,LOUGHBOROUGH UNIVERSITY ENTERPRISE LTD,4000204357,21920.00
Department for Education,NATIONAL COLLEGE FOR TEACHING AND LEADERSHIP AGENCY,02/04/2015,Grants,Delivery Directorate,Grants to third sector organisations / not for profit organisations and other businesses,UNIVERSITY OF CHICHESTER,4000204396,21166.20
Department for Education,NATIONAL COLLEGE FOR TEACHING AND LEADERSHIP AGENCY,02/04/2015,Grants,Operations Directorate,Grants to third sector organisations / not for profit organisations and other businesses,LEEDS BECKETT UNIVERSITY,4000204309,20400.00
Department for Education,NATIONAL COLLEGE FOR TEACHING AND LEADERSHIP AGENCY,02/04/2015,Grants,Delivery Directorate,Grants to third sector organisations / not for profit organisations and other businesses,UNIVERSITY OF WOLVERHAMPTON,4000204203,20160.00
Department for Education,NATIONAL COLLEGE FOR TEACHING AND LEADERSHIP AGENCY,02/04/2015,Grants,Delivery Directorate,Grants to third sector organisations / not for profit organisations and other businesses,THE UNIVERSITY OF READING,4000204454,20000.00
Department for Education,NATIONAL COLLEGE FOR TEACHING AND LEADERSHIP AGENCY,02/04/2015,Grants,Delivery Directorate,Grants to third sector organisations / not for profit organisations and other businesses,UNIVERSITY OF DERBY,4000204312,19359.60
Department for Education,NATIONAL COLLEGE FOR TEACHING AND LEADERSHIP AGENCY,02/04/2015,Grants,Delivery Directorate,Grants to third sector organisations / not for profit organisations and other businesses,UNIVERSITY OF WINCHESTER,4000204422,19285.20
Department for Education,NATIONAL COLLEGE FOR TEACHING AND LEADERSHIP AGENCY,02/04/2015,Grants,Delivery Directorate,Grants to third sector organisations / not for profit organisations and other businesses,MIDDLESEX UNIVERSITY,4000204602,19240.00
Department for Education,DEPARTMENT FOR EDUCATION,21/04/2015,Grants,Closing the Gap Group,Grants to third sector organisations / not for profit organisations and other businesses,MATHEMATICS IN EDUCATION & INDUSTRY,4000205732,19198.99
Department for Education,NATIONAL COLLEGE FOR TEACHING AND LEADERSHIP AGENCY,02/04/2015,Grants,Delivery Directorate,Grants to third sector organisations / not for profit organisations and other businesses,UNIVERSITY OF HULL,4000204352,18300.00
Department for Education,NATIONAL COLLEGE FOR TEACHING AND LEADERSHIP AGENCY,02/04/2015,Grants,Operations Directorate,Grants to third sector organisations / not for profit organisations and other businesses,HIBERNIA COLLEGE UK,4000204523,17920.00
Department for Education,NATIONAL COLLEGE FOR TEACHING AND LEADERSHIP AGENCY,02/04/2015,Grants,Operations Directorate,Grants to third sector organisations / not for profit organisations and other businesses,LIVERPOOL JOHN MOORES UNIVERSITY,4000204274,17763.30
Department for Education,NATIONAL COLLEGE FOR TEACHING AND LEADERSHIP AGENCY,02/04/2015,Grants,Operations Directorate,Grants to third sector organisations / not for profit organisations and other businesses,SOMERSET COUNTY COUNCIL,4000204515,17200.00
Department for Education,NATIONAL COLLEGE FOR TEACHING AND LEADERSHIP AGENCY,02/04/2015,Grants,Delivery Directorate,Grants to third sector organisations / not for profit organisations and other businesses,UNIVERSITY OF WORCESTER,4000204288,16836.20
Department for Education,NATIONAL COLLEGE FOR TEACHING AND LEADERSHIP AGENCY,02/04/2015,Grants,Delivery Directorate,Grants to third sector organisations / not for profit organisations and other businesses,UNIVERSITY OF SUNDERLAND,4000204611,16599.60
Department for Education,DEPARTMENT FOR EDUCATION,24/04/2015,Personnel Related,Education Funding Group,"Contribution towards the 2015-16 annual membership fee to fund the Government Operational Research Service Central Management Unit who provide recruitment, training and support functions for the government Operational Research profession. This contribution was paid by the Education Funding Group.",HMRC,4000206143,16188.00
Department for Education,DEPARTMENT FOR EDUCATION,10/04/2015,Office Solutions,Information Technology Group,Office machines,INSIGHT DIRECT UK LIMITED,4000204982,16142.40
Department for Education,NATIONAL COLLEGE FOR TEACHING AND LEADERSHIP AGENCY,02/04/2015,Grants,Delivery Directorate,Grants to third sector organisations / not for profit organisations and other businesses,UNIVERSITY OF NORTHUMBRIA,4000204265,15570.00
Department for Education,DEPARTMENT FOR EDUCATION,17/04/2015,Professional Services Consultancy and Contingent Labour,Information Technology Group,Costs related to temporary workers,ALPINE CONSORTIUM,4000205555,15444.00
Department for Education,NATIONAL COLLEGE FOR TEACHING AND LEADERSHIP AGENCY,02/04/2015,Grants,Delivery Directorate,Grants to third sector organisations / not for profit organisations and other businesses,UNIVERSITY OF WOLVERHAMPTON,4000204203,15200.00
Department for Education,NATIONAL COLLEGE FOR TEACHING AND LEADERSHIP AGENCY,02/04/2015,Grants,Delivery Directorate,Grants to third sector organisations / not for profit organisations and other businesses,DONCASTER MBC,4000204205,15120.00
Department for Education,NATIONAL COLLEGE FOR TEACHING AND LEADERSHIP AGENCY,02/04/2015,Grants,Delivery Directorate,Grants to third sector organisations / not for profit organisations and other businesses,UNIVERSITY OF BRIGHTON,4000204451,15120.00
Department for Education,DEPARTMENT FOR EDUCATION,09/04/2015,ICT,Information Technology Group,ICT Services,EDUSERV,4000204912,15037.21
Department for Education,DEPARTMENT FOR EDUCATION,15/04/2015,ICT,Information Technology Group,ICT Services,VODAFONE,4000205244,14638.02
Department for Education,NATIONAL COLLEGE FOR TEACHING AND LEADERSHIP AGENCY,02/04/2015,Grants,Operations Directorate,Grants to third sector organisations / not for profit organisations and other businesses,UNIVERSITY OF CHICHESTER,4000204396,14563.80
Department for Education,NATIONAL COLLEGE FOR TEACHING AND LEADERSHIP AGENCY,02/04/2015,Grants,Delivery Directorate,Grants to third sector organisations / not for profit organisations and other businesses,SHEFFIELD HALLAM UNIVERSITY,4000204476,14400.00
Department for Education,NATIONAL COLLEGE FOR TEACHING AND LEADERSHIP AGENCY,02/04/2015,Grants,Delivery Directorate,Grants to third sector organisations / not for profit organisations and other businesses,MANCHESTER METROPOLITAN UNIVERSITY,4000204494,14400.00
Department for Education,DEPARTMENT FOR EDUCATION,13/04/2015,Professional Services Consultancy and Contingent Labour,Information Technology Group,Costs related to temporary workers,METHODS CONSULTING LTD,4000205050,14400.00
Department for Education,DEPARTMENT FOR EDUCATION,28/04/2015,ICT,Information Technology Group,ICT Services,VODAFONE LTD,4000206305,14346.48
Department for Education,DEPARTMENT FOR EDUCATION,13/04/2015,Professional Services Other,Finance and Commercial Group - Property Asset Management,"Fees / expenses of professionals, for example to implement advice or changes",METHODS CONSULTING LTD,4000205050,14190.00
Department for Education,NATIONAL COLLEGE FOR TEACHING AND LEADERSHIP AGENCY,02/04/2015,Grants,Operations Directorate,Grants to third sector organisations / not for profit organisations and other businesses,CANTERBURY CHRIST CHURCH UNIVERSITY,4000204570,14130.00
Department for Education,DEPARTMENT FOR EDUCATION,02/04/2015,Professional Services Other,Strategic Analysis and Research and Policy Impact Group,Research and evaluation activities,LOUGHBOROUGH UNIVERSITY ENTERPRISE LTD,4000204357,13898.79
Department for Education,NATIONAL COLLEGE FOR TEACHING AND LEADERSHIP AGENCY,02/04/2015,Grants,Delivery Directorate,Grants to third sector organisations / not for profit organisations and other businesses,BATH SPA UNIVERSITY,4000204505,13600.00
Department for Education,NATIONAL COLLEGE FOR TEACHING AND LEADERSHIP AGENCY,02/04/2015,Grants,Delivery Directorate,Grants to third sector organisations / not for profit organisations and other businesses,ST MARYS UNIVERSITY COLLEGE,4000204538,13600.00
Department for Education,DEPARTMENT FOR EDUCATION,02/04/2015,Professional Services Consultancy and Contingent Labour,Information Technology Group,Costs related to temporary workers,RUSSAM GMS LTD,4000204527,13560.00
Department for Education,NATIONAL COLLEGE FOR TEACHING AND LEADERSHIP AGENCY,02/04/2015,Grants,Delivery Directorate,Grants to third sector organisations / not for profit organisations and other businesses,BATH SPA UNIVERSITY,4000204505,13320.00
Department for Education,DEPARTMENT FOR EDUCATION,02/04/2015,ICT,Information Technology Group,ICT Software,COMPAREX UK LTD,4000204376,12822.72
Department for Education,DEPARTMENT FOR EDUCATION,01/04/2015,ICT,Information Technology Group,ICT Services,EDUSERV,4000204159,12819.61
Department for Education,NATIONAL COLLEGE FOR TEACHING AND LEADERSHIP AGENCY,02/04/2015,Grants,Delivery Directorate,Grants to third sector organisations / not for profit organisations and other businesses,UNIVERSITY OF ROEHAMPTON,4000204367,12800.00
Department for Education,NATIONAL COLLEGE FOR TEACHING AND LEADERSHIP AGENCY,02/04/2015,Grants,Delivery Directorate,Grants to third sector organisations / not for profit organisations and other businesses,CANTERBURY CHRIST CHURCH UNIVERSITY,4000204570,12800.00
Department for Education,NATIONAL COLLEGE FOR TEACHING AND LEADERSHIP AGENCY,02/04/2015,Grants,Operations Directorate,Grants to third sector organisations / not for profit organisations and other businesses,UNIVERSITY OF WOLVERHAMPTON,4000204203,12510.00
Department for Education,NATIONAL COLLEGE FOR TEACHING AND LEADERSHIP AGENCY,02/04/2015,Grants,Delivery Directorate,Grants to third sector organisations / not for profit organisations and other businesses,LEEDS BECKETT UNIVERSITY,4000204309,12420.00
Department for Education,DEPARTMENT FOR EDUCATION,02/04/2015,Professional Services Consultancy and Contingent Labour,Information Technology Group,Costs related to temporary workers,RUSSAM GMS LTD,4000204527,12000.00
Department for Education,DEPARTMENT FOR EDUCATION,23/04/2015,Miscellaneous Expenditure,"Childcare, Special Educational Needs and Children's Strategy Group",Tribunals and trials service fees,HMCTS HM COURTS & TRIBUNALS SERVICE,4000206045,11766.00
Department for Education,DEPARTMENT FOR EDUCATION,02/04/2015,ICT,Information Technology Group,ICT Software,COMPAREX UK LTD,4000204376,11415.80
Department for Education,DEPARTMENT FOR EDUCATION,02/04/2015,Professional Services Other,Finance and Commercial Group - Property Asset Management,"Fees / expenses of professionals, for example to implement advice or changes",METHODS CONSULTING LTD,4000204421,11220.00
Department for Education,NATIONAL COLLEGE FOR TEACHING AND LEADERSHIP AGENCY,02/04/2015,Grants,Delivery Directorate,Grants to third sector organisations / not for profit organisations and other businesses,UNIVERSITY OF THE WEST OF ENGLAND,4000204268,10606.20
Department for Education,NATIONAL COLLEGE FOR TEACHING AND LEADERSHIP AGENCY,02/04/2015,Grants,Delivery Directorate,Grants to third sector organisations / not for profit organisations and other businesses,BISHOP GROSSETESTE COLLEGE,4000204531,10570.00
Department for Education,DEPARTMENT FOR EDUCATION,16/04/2015,ICT,Information Technology Group,Digital media and web production,PROLOG,4000205404,209905.53
Department for Education,STANDARDS AND TESTING AGENCY,16/04/2015,Programme costs,Test Operations Division,Funding to deliver policies (excluding consultancy) paid to third parties via a service delivery contract,PROLOG,4000205404,23025.00
Department for Education,NATIONAL COLLEGE FOR TEACHING AND LEADERSHIP AGENCY,02/04/2015,Grants,Delivery Directorate,Grants to third sector organisations / not for profit organisations and other businesses,UNIVERSITY OF BEDFORDSHIRE,4000204358,10080.00
Department for Education,DEPARTMENT FOR EDUCATION,09/04/2015,Professional Services Consultancy and Contingent Labour,Information Technology Group,Costs related to temporary workers,RUSSAM GMS LTD,4000204890,9697.80
Department for Education,DEPARTMENT FOR EDUCATION,24/04/2015,Personnel Related,Systems and Accountability Group,"Contribution towards the 2015-16 annual membership fee to fund the Government Operational Research Service Central Management Unit who provide recruitment, training and support functions for the government Operational Research profession. This contribution was paid by the Systems and Accountability Group.",HMRC,4000206143,9372.00
Department for Education,NATIONAL COLLEGE FOR TEACHING AND LEADERSHIP AGENCY,02/04/2015,Grants,Delivery Directorate,Grants to third sector organisations / not for profit organisations and other businesses,UNIVERSITY OF PORTSMOUTH,4000204246,8820.00
Department for Education,NATIONAL COLLEGE FOR TEACHING AND LEADERSHIP AGENCY,02/04/2015,Grants,Operations Directorate,Grants to third sector organisations / not for profit organisations and other businesses,UNIVERSITY OF SUNDERLAND,4000204611,8820.00
Department for Education,NATIONAL COLLEGE FOR TEACHING AND LEADERSHIP AGENCY,02/04/2015,Grants,Delivery Directorate,Grants to third sector organisations / not for profit organisations and other businesses,UNIVERSITY OF HUDDERSFIELD,4000204608,8326.20
Department for Education,NATIONAL COLLEGE FOR TEACHING AND LEADERSHIP AGENCY,02/04/2015,Grants,Operations Directorate,Grants to third sector organisations / not for profit organisations and other businesses,UNIVERSITY OF HUDDERSFIELD,4000204608,8190.00
Department for Education,EDUCATION FUNDING AGENCY,15/04/2015,ICT,Capital Group,Telecoms facilities and services - mobiles and pagers,VODAFONE CORPORATE,4000205268,8178.82
Department for Education,NATIONAL COLLEGE FOR TEACHING AND LEADERSHIP AGENCY,02/04/2015,Grants,Delivery Directorate,Grants to third sector organisations / not for profit organisations and other businesses,UNIVERSITY OF BIRMINGHAM,4000204586,8000.00
Department for Education,NATIONAL COLLEGE FOR TEACHING AND LEADERSHIP AGENCY,02/04/2015,Grants,Operations Directorate,Grants to third sector organisations / not for profit organisations and other businesses,UNIVERSITY OF BIRMINGHAM,4000204586,7410.00
Department for Education,NATIONAL COLLEGE FOR TEACHING AND LEADERSHIP AGENCY,02/04/2015,Grants,Operations Directorate,Grants to third sector organisations / not for profit organisations and other businesses,EDGE HILL UNIVERSITY,4000204229,7229.25
Department for Education,DEPARTMENT FOR EDUCATION,16/04/2015,Funding to pay Teachers' Pensions,Teachers and Teaching Group,Pension related payments to retired teachers where liability has transferred to SoS,TPS GOVERNMENT BANKING SERVICE ACCOUNT,2001103,7121.17
Department for Education,NATIONAL COLLEGE FOR TEACHING AND LEADERSHIP AGENCY,02/04/2015,Grants,Operations Directorate,Grants to third sector organisations / not for profit organisations and other businesses,STAFFORDSHIRE UNIVERSITY,4000204310,6750.00
Department for Education,NATIONAL COLLEGE FOR TEACHING AND LEADERSHIP AGENCY,02/04/2015,Grants,Delivery Directorate,Grants to third sector organisations / not for profit organisations and other businesses,LEEDS TRINITY UNIVERSITY COLLEGE,4000204198,6720.00
Department for Education,NATIONAL COLLEGE FOR TEACHING AND LEADERSHIP AGENCY,02/04/2015,Grants,Operations Directorate,Grants to third sector organisations / not for profit organisations and other businesses,UNIVERSITY OF GREENWICH,4000204516,6720.00
Department for Education,DEPARTMENT FOR EDUCATION,15/04/2015,Professional Services Consultancy and Contingent Labour,Information Technology Group,Costs related to temporary workers,RUSSAM GMS LTD,4000205240,6600.00
Department for Education,NATIONAL COLLEGE FOR TEACHING AND LEADERSHIP AGENCY,02/04/2015,Grants,Operations Directorate,Grants to third sector organisations / not for profit organisations and other businesses,HIBERNIA COLLEGE UK,4000204523,6515.00
Department for Education,DEPARTMENT FOR EDUCATION,23/04/2015,Facilities,Finance and Commercial Group - Property Asset Management,Business rates,GVA GRIMLEY LTD,4000206000,6357.00
Department for Education,NATIONAL COLLEGE FOR TEACHING AND LEADERSHIP AGENCY,16/04/2015,Communications,Operations Directorate,"Advertising to attract teachers into the teaching profession, including the distribution of teaching flyers",PROLOG,4000205404,840.60
Department for Education,DEPARTMENT FOR EDUCATION,09/04/2015,Professional Services Consultancy and Contingent Labour,Information Technology Group,Costs related to temporary workers,RUSSAM GMS LTD,4000204890,6300.00
Department for Education,NATIONAL COLLEGE FOR TEACHING AND LEADERSHIP AGENCY,02/04/2015,Grants,Operations Directorate,Grants to third sector organisations / not for profit organisations and other businesses,UNIVERSITY OF DERBY,4000204312,6030.00
Department for Education,NATIONAL COLLEGE FOR TEACHING AND LEADERSHIP AGENCY,02/04/2015,Grants,Operations Directorate,Grants to third sector organisations / not for profit organisations and other businesses,LIVERPOOL JOHN MOORES UNIVERSITY,4000204274,5620.00
Department for Education,NATIONAL COLLEGE FOR TEACHING AND LEADERSHIP AGENCY,02/04/2015,Grants,Delivery Directorate,Grants to third sector organisations / not for profit organisations and other businesses,UNIVERSITY OF HULL,4000204352,5600.00
Department for Education,NATIONAL COLLEGE FOR TEACHING AND LEADERSHIP AGENCY,02/04/2015,Grants,Delivery Directorate,Grants to third sector organisations / not for profit organisations and other businesses,UNIVERSITY OF SUNDERLAND,4000204611,5600.00
Department for Education,DEPARTMENT FOR EDUCATION,21/04/2015,Office Solutions,Information Technology Group,Office machines,INSIGHT DIRECT UK LIMITED,4000205844,5385.60
Department for Education,DEPARTMENT FOR EDUCATION,10/04/2015,Learning and Development,Information Technology Group,Staff training and development including materials and courses,JP MORGAN COMMERCIAL CARDS,4000204971,5284.32
Department for Education,NATIONAL COLLEGE FOR TEACHING AND LEADERSHIP AGENCY,02/04/2015,Grants,Delivery Directorate,Grants to third sector organisations / not for profit organisations and other businesses,GRAND UNION TRAINING PARTNERSHIP,4000204433,5160.00
Department for Education,DEPARTMENT FOR EDUCATION,09/04/2015,ICT,Information Technology Group,ICT Services,EDUSERV,4000204912,5100.00
Department for Education,NATIONAL COLLEGE FOR TEACHING AND LEADERSHIP AGENCY,02/04/2015,Grants,Operations Directorate,Grants to third sector organisations / not for profit organisations and other businesses,BIRMINGHAM CITY UNIVERSITY,4000204273,5040.00
Department for Education,DEPARTMENT FOR EDUCATION,02/04/2015,Professional Services Consultancy and Contingent Labour,Information Technology Group,Costs related to temporary workers,RUSSAM GMS LTD,4000204527,4838.34
Department for Education,NATIONAL COLLEGE FOR TEACHING AND LEADERSHIP AGENCY,02/04/2015,Grants,Operations Directorate,Grants to third sector organisations / not for profit organisations and other businesses,OXFORD BROOKES UNIVERSITY,4000204560,4590.00
Department for Education,DEPARTMENT FOR EDUCATION,10/04/2015,Office Solutions,Legal Advisers Office,Office Supplies,JP MORGAN COMMERCIAL CARDS,4000204971,4250.00
Department for Education,DEPARTMENT FOR EDUCATION,02/04/2015,ICT,Information Technology Group,ICT Software,COMPAREX UK LTD,4000204376,3930.00
Department for Education,NATIONAL COLLEGE FOR TEACHING AND LEADERSHIP AGENCY,02/04/2015,Grants,Operations Directorate,Grants to third sector organisations / not for profit organisations and other businesses,GRAND UNION TRAINING PARTNERSHIP,4000204433,3705.00
Department for Education,NATIONAL COLLEGE FOR TEACHING AND LEADERSHIP AGENCY,02/04/2015,Grants,Operations Directorate,Grants to third sector organisations / not for profit organisations and other businesses,UNIVERSITY OF CUMBRIA,4000204362,3350.70
Department for Education,DEPARTMENT FOR EDUCATION,15/04/2015,ICT,Academies Delivery Group,Telecoms facilities and services - mobiles and pagers,VODAFONE CORPORATE,4000205268,3150.05
Department for Education,DEPARTMENT FOR EDUCATION,10/04/2015,Print and Print Management,Legal Advisers Office,Printing and binding services,JP MORGAN COMMERCIAL CARDS,4000204971,3138.45
Department for Education,NATIONAL COLLEGE FOR TEACHING AND LEADERSHIP AGENCY,02/04/2015,Grants,Operations Directorate,Grants to third sector organisations / not for profit organisations and other businesses,UNIVERSITY OF THE WEST OF ENGLAND,4000204268,3060.00
Department for Education,DEPARTMENT FOR EDUCATION,10/04/2015,Office Solutions,Information Technology Group,Office Supplies,JP MORGAN COMMERCIAL CARDS,4000204971,3046.72
Department for Education,NATIONAL COLLEGE FOR TEACHING AND LEADERSHIP AGENCY,02/04/2015,Grants,Operations Directorate,Grants to third sector organisations / not for profit organisations and other businesses,UNIVERSITY OF SOUTHAMPTON,4000204424,2970.00
Department for Education,NATIONAL COLLEGE FOR TEACHING AND LEADERSHIP AGENCY,02/04/2015,Grants,Operations Directorate,Grants to third sector organisations / not for profit organisations and other businesses,BRADFORD COLLEGE,4000204321,2858.00
Department for Education,DEPARTMENT FOR EDUCATION,10/04/2015,Professional Services Consultancy and Contingent Labour,Information Technology Group,"Fees / expenses of professionals such as auditors, accountants, lawyers, etc. engaged to provide advice or opinion on how to affect something",JP MORGAN COMMERCIAL CARDS,4000204971,2757.60
Department for Education,NATIONAL COLLEGE FOR TEACHING AND LEADERSHIP AGENCY,02/04/2015,Grants,Operations Directorate,Grants to third sector organisations / not for profit organisations and other businesses,NOTTINGHAM TRENT UNIVERSITY,4000204289,2700.00
Department for Education,DEPARTMENT FOR EDUCATION,10/04/2015,Office Solutions,Systems and Accountability Group,Office Supplies,JP MORGAN COMMERCIAL CARDS,4000204971,2672.08
Department for Education,DEPARTMENT FOR EDUCATION,10/04/2015,Travel,Children in Care Division,Accommodation / venue hire for events,JP MORGAN COMMERCIAL CARDS,4000204971,2583.00
Department for Education,DEPARTMENT FOR EDUCATION,10/04/2015,Office Solutions,Information Technology Group,Office Supplies,JP MORGAN COMMERCIAL CARDS,4000204971,2521.44
Department for Education,NATIONAL COLLEGE FOR TEACHING AND LEADERSHIP AGENCY,02/04/2015,Grants,Delivery Directorate,Grants to third sector organisations / not for profit organisations and other businesses,NOTTINGHAM TRENT UNIVERSITY,4000204289,2400.00
Department for Education,NATIONAL COLLEGE FOR TEACHING AND LEADERSHIP AGENCY,02/04/2015,Grants,Delivery Directorate,Grants to third sector organisations / not for profit organisations and other businesses,UNIVERSITY OF EAST LONDON,4000204240,2240.00
Department for Education,DEPARTMENT FOR EDUCATION,15/04/2015,Professional Services Consultancy and Contingent Labour,Information Technology Group,Costs related to temporary workers,RUSSAM GMS LTD,4000205240,2100.00
Department for Education,NATIONAL COLLEGE FOR TEACHING AND LEADERSHIP AGENCY,02/04/2015,Grants,Operations Directorate,Grants to third sector organisations / not for profit organisations and other businesses,UNIVERSITY OF BRIGHTON,4000204451,2070.00
Department for Education,EDUCATION FUNDING AGENCY,15/04/2015,ICT,Academies Group,Telecoms facilities and services - mobiles and pagers,VODAFONE CORPORATE,4000205268,2040.89
Department for Education,EDUCATION FUNDING AGENCY,15/04/2015,ICT,Young People Group,Telecoms facilities and services - mobiles and pagers,VODAFONE CORPORATE,4000205268,1981.48
Department for Education,NATIONAL COLLEGE FOR TEACHING AND LEADERSHIP AGENCY,02/04/2015,Grants,Operations Directorate,Grants to third sector organisations / not for profit organisations and other businesses,SHEFFIELD HALLAM UNIVERSITY,4000204476,1890.00
Department for Education,NATIONAL COLLEGE FOR TEACHING AND LEADERSHIP AGENCY,02/04/2015,Grants,Delivery Directorate,Grants to third sector organisations / not for profit organisations and other businesses,KING EDWARDS CONSORTIUM,4000204468,1600.00
Department for Education,EDUCATION FUNDING AGENCY,15/04/2015,ICT,Education Funding Agency Admin,Telecoms facilities and services - mobiles and pagers,VODAFONE CORPORATE,4000205268,1550.77
Department for Education,DEPARTMENT FOR EDUCATION,10/04/2015,Office Solutions,Systems and Accountability Group,Office Supplies,JP MORGAN COMMERCIAL CARDS,4000204971,1520.94
Department for Education,DEPARTMENT FOR EDUCATION,10/04/2015,Office Solutions,Information Technology Group,Office Supplies,JP MORGAN COMMERCIAL CARDS,4000204971,1520.11
Department for Education,NATIONAL COLLEGE FOR TEACHING AND LEADERSHIP AGENCY,02/04/2015,Grants,Operations Directorate,Grants to third sector organisations / not for profit organisations and other businesses,NEWMAN COLLEGE,4000204557,1451.40
Department for Education,DEPARTMENT FOR EDUCATION,10/04/2015,Facilities,Legal Advisers Office,"Low value furniture, fixtures and fittings",JP MORGAN COMMERCIAL CARDS,4000204971,1276.40
Department for Education,DEPARTMENT FOR EDUCATION,10/04/2015,Professional Services Consultancy and Contingent Labour,Finance and Commercial Group,"Fees / expenses of professionals such as auditors, accountants, lawyers, etc. engaged to provide advice or opinion on how to affect something",JP MORGAN COMMERCIAL CARDS,4000204971,1266.00
Department for Education,DEPARTMENT FOR EDUCATION,01/04/2015,ICT,Information Technology Group,ICT Hardware,EDUSERV,4000204159,1213.20
Department for Education,DEPARTMENT FOR EDUCATION,09/04/2015,Professional Services Consultancy and Contingent Labour,Information Technology Group,Costs related to temporary workers,RUSSAM GMS LTD,4000204890,1200.00
Department for Education,NATIONAL COLLEGE FOR TEACHING AND LEADERSHIP AGENCY,16/04/2015,Professional Services Other,Delivery Directorate,Interpretations and translation services,PROLOG,4000205404,290.00
Department for Education,DEPARTMENT FOR EDUCATION,10/04/2015,Office Solutions,Education Funding Group,Office Supplies,JP MORGAN COMMERCIAL CARDS,4000204971,1035.00
Department for Education,DEPARTMENT FOR EDUCATION,10/04/2015,Learning and Development,Systems and Accountability Group,Staff training and development including materials and courses,JP MORGAN COMMERCIAL CARDS,4000204971,990.00
Department for Education,DEPARTMENT FOR EDUCATION,15/04/2015,ICT,Children in Care Division,Telecoms facilities and services - mobiles and pagers,VODAFONE CORPORATE,4000205268,973.63
Department for Education,DEPARTMENT FOR EDUCATION,10/04/2015,Travel,Finance and Commercial Group - Property Asset Management,Accommodation / venue hire for events,JP MORGAN COMMERCIAL CARDS,4000204971,966.00
Department for Education,DEPARTMENT FOR EDUCATION,15/04/2015,ICT,Finance and Commercial Group,Telecoms facilities and services - mobiles and pagers,VODAFONE CORPORATE,4000205268,953.47
Department for Education,STANDARDS AND TESTING AGENCY,29/04/2015,Office Solutions,Standards and Testing Agency Admin,Office Supplies,WILLIAMS LEA,4000206374,948.96
Department for Education,DEPARTMENT FOR EDUCATION,15/04/2015,ICT,Free School Group,Telecoms facilities and services - mobiles and pagers,VODAFONE CORPORATE,4000205268,899.84
Department for Education,DEPARTMENT FOR EDUCATION,24/04/2015,Personnel Related,Children in Care Division,"Contribution towards the 2015-16 annual membership fee to fund the Government Operational Research Service Central Management Unit who provide recruitment, training and support functions for the government Operational Research profession. This contribution was paid by the Children in Care Division.",HMRC,4000206143,852.00
Department for Education,DEPARTMENT FOR EDUCATION,24/04/2015,Personnel Related,Strategic Analysis and Research and Policy Impact Group,"Contribution towards the 2015-16 annual membership fee to fund the Government Operational Research Service Central Management Unit who provide recruitment, training and support functions for the government Operational Research profession. This contribution was paid by the Strategic Analysis and Research Division.",HMRC,4000206143,852.00
Department for Education,DEPARTMENT FOR EDUCATION,24/04/2015,Personnel Related,School Standards Group,"Contribution towards the 2015-16 annual membership fee to fund the Government Operational Research Service Central Management Unit who provide recruitment, training and support functions for the government Operational Research profession. This contribution was paid by the School Standards Group.",HMRC,4000206143,852.00
Department for Education,NATIONAL COLLEGE FOR TEACHING AND LEADERSHIP AGENCY,24/04/2015,Personnel Related,Delivery Directorate,"Contribution towards the 2015-16 annual membership fee to fund the Government Operational Research Service Central Management Unit who provide recruitment, training and support functions for the government Operational Research profession. This contribution was paid by the National College for Teaching and Leadership Agency.",HMRC,4000206143,852.00
Department for Education,NATIONAL COLLEGE FOR TEACHING AND LEADERSHIP AGENCY,16/04/2015,Office Solutions,Operations Directorate,Office Supplies,PROLOG,4000205404,727.64
Department for Education,DEPARTMENT FOR EDUCATION,10/04/2015,Office Solutions,Human Resources Group,Office Supplies,JP MORGAN COMMERCIAL CARDS,4000204971,840.00
Department for Education,DEPARTMENT FOR EDUCATION,15/04/2015,ICT,Communications Group,Telecoms facilities and services - mobiles and pagers,VODAFONE CORPORATE,4000205268,838.96
Department for Education,DEPARTMENT FOR EDUCATION,15/04/2015,ICT,Finance and Commercial Group - Property Asset Management,Telecoms facilities and services - mobiles and pagers,VODAFONE CORPORATE,4000205268,810.04
Department for Education,NATIONAL COLLEGE FOR TEACHING AND LEADERSHIP AGENCY,02/04/2015,Grants,Operations Directorate,Grants to third sector organisations / not for profit organisations and other businesses,UNIVERSITY OF WARWICK,4000204359,810.00
Department for Education,DEPARTMENT FOR EDUCATION,10/04/2015,Travel,Academies Delivery Group,Accommodation / venue hire for events,JP MORGAN COMMERCIAL CARDS,4000204971,801.00
Department for Education,NATIONAL COLLEGE FOR TEACHING AND LEADERSHIP AGENCY,16/04/2015,Office Solutions,Operations Directorate,Post and courier services,PROLOG,4000205404,6321.39
Department for Education,DEPARTMENT FOR EDUCATION,15/04/2015,ICT,Assessment and Curriculum and General Qualifications Group,Telecoms facilities and services - mobiles and pagers,VODAFONE CORPORATE,4000205268,727.43
Department for Education,NATIONAL COLLEGE FOR TEACHING AND LEADERSHIP AGENCY,02/04/2015,Professional Services Other,School Business Management and Efficiency,"Fees / expenses of professionals, for example to implement advice or changes",ANGLIA RUSKIN UNIVERSITY,4000204541,726.80
Department for Education,NATIONAL COLLEGE FOR TEACHING AND LEADERSHIP AGENCY,02/04/2015,Grants,Operations Directorate,Grants to third sector organisations / not for profit organisations and other businesses,UNIVERSITY OF PORTSMOUTH,4000204246,720.00
Department for Education,DEPARTMENT FOR EDUCATION,10/04/2015,Office Solutions,Information Technology Group,Office Supplies,JP MORGAN COMMERCIAL CARDS,4000204971,651.97
Department for Education,DEPARTMENT FOR EDUCATION,15/04/2015,ICT,Teachers and Teaching Group,Telecoms facilities and services - mobiles and pagers,VODAFONE CORPORATE,4000205268,637.12
Department for Education,DEPARTMENT FOR EDUCATION,15/04/2015,ICT,Closing the Gap Group,Telecoms facilities and services - mobiles and pagers,VODAFONE CORPORATE,4000205268,611.22
Department for Education,DEPARTMENT FOR EDUCATION,21/04/2015,Professional Services Other,Finance and Commercial Group,Shared corporate payroll services,SHARED SERVICES CONNECTED LTD,4000205749,578.95
Department for Education,DEPARTMENT FOR EDUCATION,24/04/2015,ICT,Information Technology Group,ICT Services,CAPGEMINI UK PLC,4000206142,572.83
Department for Education,DEPARTMENT FOR EDUCATION,15/04/2015,ICT,Human Resources Group,Telecoms facilities and services - mobiles and pagers,VODAFONE CORPORATE,4000205268,555.10
Department for Education,DEPARTMENT FOR EDUCATION,15/04/2015,ICT,"Childcare, Special Educational Needs and Children's Strategy Group",Telecoms facilities and services - mobiles and pagers,VODAFONE CORPORATE,4000205268,514.52
Department for Education,DEPARTMENT FOR EDUCATION,15/04/2015,ICT,Finance and Commercial Group,Telecoms facilities and services - mobiles and pagers,VODAFONE CORPORATE,4000205268,511.84
Department for Education,DEPARTMENT FOR EDUCATION,10/04/2015,Office Solutions,Communications Group,Office Supplies,JP MORGAN COMMERCIAL CARDS,4000204971,501.18
Department for Education,DEPARTMENT FOR EDUCATION,10/04/2015,Office Solutions,Academies Delivery Group,Office Supplies,JP MORGAN COMMERCIAL CARDS,4000204971,434.25
Department for Education,DEPARTMENT FOR EDUCATION,15/04/2015,ICT,System Reform Group,Telecoms facilities and services - mobiles and pagers,VODAFONE CORPORATE,4000205268,420.34
Department for Education,NATIONAL COLLEGE FOR TEACHING AND LEADERSHIP AGENCY,02/04/2015,Grants,Delivery Directorate,Grants to third sector organisations / not for profit organisations and other businesses,OXFORD BROOKES UNIVERSITY,4000204560,420.00
Department for Education,DEPARTMENT FOR EDUCATION,15/04/2015,ICT,Public Communications Group,Telecoms facilities and services - mobiles and pagers,VODAFONE CORPORATE,4000205268,415.30
Department for Education,DEPARTMENT FOR EDUCATION,15/04/2015,ICT,Private Office,Telecoms facilities and services - mobiles and pagers,VODAFONE CORPORATE,4000205268,404.06
Department for Education,DEPARTMENT FOR EDUCATION,15/04/2015,ICT,Education Funding Group,Telecoms facilities and services - mobiles and pagers,VODAFONE CORPORATE,4000205268,392.12
Department for Education,DEPARTMENT FOR EDUCATION,24/04/2015,ICT,Information Technology Group,ICT Services - hardware maintenance and support,CAPGEMINI UK PLC,4000206142,355.07
Department for Education,DEPARTMENT FOR EDUCATION,10/04/2015,Office Solutions,Teachers and Teaching Group,Office Supplies,JP MORGAN COMMERCIAL CARDS,4000204971,354.00
Department for Education,DEPARTMENT FOR EDUCATION,10/04/2015,Office Solutions,Finance and Commercial Group,Office Supplies,JP MORGAN COMMERCIAL CARDS,4000204971,319.68
Department for Education,DEPARTMENT FOR EDUCATION,15/04/2015,ICT,"Strategy, Performance and Implementation Group",Telecoms facilities and services - mobiles and pagers,VODAFONE CORPORATE,4000205268,316.98
Department for Education,DEPARTMENT FOR EDUCATION,10/04/2015,ICT,Information Technology Group,ICT Services,JP MORGAN COMMERCIAL CARDS,4000204971,298.08
Department for Education,STANDARDS AND TESTING AGENCY,16/04/2015,Print and Print Management,Test Operations Division,Secure printing,PROLOG,4000205404,717169.03
Department for Education,DEPARTMENT FOR EDUCATION,15/04/2015,ICT,Systems and Accountability Group,Telecoms facilities and services - mobiles and pagers,VODAFONE CORPORATE,4000205268,278.40
Department for Education,DEPARTMENT FOR EDUCATION,15/04/2015,ICT,Strategic Analysis and Research and Policy Impact Group,Telecoms facilities and services - mobiles and pagers,VODAFONE CORPORATE,4000205268,269.63
Department for Education,DEPARTMENT FOR EDUCATION,15/04/2015,ICT,"Childcare, Special Educational Needs and Children's Strategy Group",Telecoms facilities and services - mobiles and pagers,VODAFONE CORPORATE,4000205268,269.40
Department for Education,DEPARTMENT FOR EDUCATION,10/04/2015,Print and Print Management,Information Technology Group,Reprographic goods and services (excluding photocopiers),JP MORGAN COMMERCIAL CARDS,4000204971,248.64
Department for Education,DEPARTMENT FOR EDUCATION,10/04/2015,Office Solutions,Information Technology Group,Office Supplies,JP MORGAN COMMERCIAL CARDS,4000204971,225.00
Department for Education,DEPARTMENT FOR EDUCATION,15/04/2015,ICT,School Standards Group,Telecoms facilities and services - mobiles and pagers,VODAFONE CORPORATE,4000205268,214.47
Department for Education,DEPARTMENT FOR EDUCATION,15/04/2015,ICT,Finance and Commercial Group,Telecoms facilities and services - mobiles and pagers,VODAFONE CORPORATE,4000205268,213.60
Department for Education,DEPARTMENT FOR EDUCATION,10/04/2015,Professional Services Consultancy and Contingent Labour,Finance and Commercial Group,"Fees / expenses of professionals such as auditors, accountants, lawyers, etc. engaged to provide advice or opinion on how to affect something",JP MORGAN COMMERCIAL CARDS,4000204971,208.80
Department for Education,DEPARTMENT FOR EDUCATION,10/04/2015,Professional Services Consultancy and Contingent Labour,Systems and Accountability Group,"Fees / expenses of professionals such as auditors, accountants, lawyers, etc. engaged to provide advice or opinion on how to affect something",JP MORGAN COMMERCIAL CARDS,4000204971,206.40
Department for Education,DEPARTMENT FOR EDUCATION,15/04/2015,ICT,Strategic Analysis and Research and Policy Impact Group,Telecoms facilities and services - mobiles and pagers,VODAFONE CORPORATE,4000205268,199.46
Department for Education,EDUCATION FUNDING AGENCY,15/04/2015,ICT,Education Funding Agency Admin,Telecoms facilities and services - mobiles and pagers,VODAFONE CORPORATE,4000205268,194.52
Department for Education,DEPARTMENT FOR EDUCATION,10/04/2015,Office Solutions,Academies Delivery Group,Office Supplies,JP MORGAN COMMERCIAL CARDS,4000204971,194.27
Department for Education,DEPARTMENT FOR EDUCATION,10/04/2015,Learning and Development,Legal Advisers Office,Staff training and development including materials and courses,JP MORGAN COMMERCIAL CARDS,4000204971,182.00
Department for Education,DEPARTMENT FOR EDUCATION,15/04/2015,ICT,Legal Advisers Office,Telecoms facilities and services - mobiles and pagers,VODAFONE CORPORATE,4000205268,169.02
Department for Education,DEPARTMENT FOR EDUCATION,15/04/2015,ICT,Due Diligence and Counter Extremism Group,Telecoms facilities and services - mobiles and pagers,VODAFONE CORPORATE,4000205268,168.00
Department for Education,STANDARDS AND TESTING AGENCY,10/04/2015,Learning and Development,Standards and Testing Agency Admin,Staff training and development including materials and courses,JP MORGAN COMMERCIAL CARDS,4000204971,146.40
Department for Education,DEPARTMENT FOR EDUCATION,15/04/2015,ICT,Regional School Commissioners Group,Telecoms facilities and services - mobiles and pagers,VODAFONE CORPORATE,4000205268,134.40
Department for Education,DEPARTMENT FOR EDUCATION,15/04/2015,ICT,Strategic Analysis and Research and Policy Impact Group,Telecoms facilities and services - mobiles and pagers,VODAFONE CORPORATE,4000205268,105.11
Department for Education,DEPARTMENT FOR EDUCATION,10/04/2015,Office Solutions,Finance and Commercial Group - Property Asset Management,Office Supplies,JP MORGAN COMMERCIAL CARDS,4000204971,100.00
Department for Education,DEPARTMENT FOR EDUCATION,15/04/2015,ICT,Education Standards Directorate,Telecoms facilities and services - mobiles and pagers,VODAFONE CORPORATE,4000205268,88.80
Department for Education,DEPARTMENT FOR EDUCATION,10/04/2015,Office Solutions,"Strategy, Performance and Implementation Group",Office Supplies,JP MORGAN COMMERCIAL CARDS,4000204971,87.94
Department for Education,DEPARTMENT FOR EDUCATION,10/04/2015,Office Solutions,Academies Delivery Group,Post and courier services,JP MORGAN COMMERCIAL CARDS,4000204971,85.14
Department for Education,DEPARTMENT FOR EDUCATION,15/04/2015,ICT,Regional School Commissioners Group,Telecoms facilities and services - mobiles and pagers,VODAFONE CORPORATE,4000205268,84.51
Department for Education,DEPARTMENT FOR EDUCATION,15/04/2015,ICT,Human Resources Group,Telecoms facilities and services - mobiles and pagers,VODAFONE CORPORATE,4000205268,84.00
Department for Education,NATIONAL COLLEGE FOR TEACHING AND LEADERSHIP AGENCY,15/04/2015,ICT,Delivery Directorate,Telecoms facilities and services - mobiles and pagers,VODAFONE CORPORATE,4000205268,84.00
Department for Education,DEPARTMENT FOR EDUCATION,10/04/2015,Office Solutions,Education Funding Group,Office Supplies,JP MORGAN COMMERCIAL CARDS,4000204971,79.98
Department for Education,DEPARTMENT FOR EDUCATION,15/04/2015,ICT,Private Office,Telecoms facilities and services - mobiles and pagers,VODAFONE CORPORATE,4000205268,78.04
Department for Education,EDUCATION FUNDING AGENCY,15/04/2015,ICT,School Funding Division,Telecoms facilities and services - mobiles and pagers,VODAFONE CORPORATE,4000205268,72.56
Department for Education,DEPARTMENT FOR EDUCATION,10/04/2015,Learning and Development,Finance and Commercial Group,Staff training and development including materials and courses,JP MORGAN COMMERCIAL CARDS,4000204971,70.00
Department for Education,DEPARTMENT FOR EDUCATION,10/04/2015,ICT,Communications Group,ICT Services,JP MORGAN COMMERCIAL CARDS,4000204971,70.00
Department for Education,DEPARTMENT FOR EDUCATION,15/04/2015,ICT,Private Office,Telecoms facilities and services - mobiles and pagers,VODAFONE CORPORATE,4000205268,65.82
Department for Education,DEPARTMENT FOR EDUCATION,15/04/2015,ICT,Regional School Commissioners Group,Telecoms facilities and services - mobiles and pagers,VODAFONE CORPORATE,4000205268,63.50
Department for Education,DEPARTMENT FOR EDUCATION,10/04/2015,Professional Services Consultancy and Contingent Labour,Systems and Accountability Group,"Fees / expenses of professionals such as auditors, accountants, lawyers, etc. engaged to provide advice or opinion on how to affect something",JP MORGAN COMMERCIAL CARDS,4000204971,60.00
Department for Education,DEPARTMENT FOR EDUCATION,10/04/2015,Facilities,System Reform Group,"Low value furniture, fixtures and fittings",JP MORGAN COMMERCIAL CARDS,4000204971,60.00
Department for Education,DEPARTMENT FOR EDUCATION,10/04/2015,Office Solutions,Assessment and Curriculum and General Qualifications Group,Office Supplies,JP MORGAN COMMERCIAL CARDS,4000204971,55.44
Department for Education,DEPARTMENT FOR EDUCATION,15/04/2015,ICT,Academies Delivery Group,Telecoms facilities and services - mobiles and pagers,VODAFONE CORPORATE,4000205268,55.20
Department for Education,DEPARTMENT FOR EDUCATION,15/04/2015,ICT,System Reform Group,Telecoms facilities and services - mobiles and pagers,VODAFONE CORPORATE,4000205268,46.80
Department for Education,DEPARTMENT FOR EDUCATION,15/04/2015,ICT,Regional School Commissioners Group,Telecoms facilities and services - mobiles and pagers,VODAFONE CORPORATE,4000205268,45.60
Department for Education,DEPARTMENT FOR EDUCATION,10/04/2015,Office Solutions,Private Office,Office Supplies,JP MORGAN COMMERCIAL CARDS,4000204971,44.45
Department for Education,DEPARTMENT FOR EDUCATION,10/04/2015,Office Solutions,Information Technology Group,Office Supplies,JP MORGAN COMMERCIAL CARDS,4000204971,42.71
Department for Education,DEPARTMENT FOR EDUCATION,10/04/2015,Office Solutions,Strategic Analysis and Research and Policy Impact Group,Office Supplies,JP MORGAN COMMERCIAL CARDS,4000204971,42.09
Department for Education,DEPARTMENT FOR EDUCATION,10/04/2015,Office Solutions,Strategic Analysis and Research and Policy Impact Group,Office Supplies,JP MORGAN COMMERCIAL CARDS,4000204971,40.38
Department for Education,DEPARTMENT FOR EDUCATION,15/04/2015,ICT,Private Office,Telecoms facilities and services - mobiles and pagers,VODAFONE CORPORATE,4000205268,33.60
Department for Education,DEPARTMENT FOR EDUCATION,15/04/2015,ICT,System Reform Group,Telecoms facilities and services - mobiles and pagers,VODAFONE CORPORATE,4000205268,33.60
Department for Education,DEPARTMENT FOR EDUCATION,15/04/2015,ICT,Infrastructure and Funding Directorate Support,Telecoms facilities and services - mobiles and pagers,VODAFONE CORPORATE,4000205268,33.60
Department for Education,DEPARTMENT FOR EDUCATION,15/04/2015,ICT,Regional School Commissioners Group,Telecoms facilities and services - mobiles and pagers,VODAFONE CORPORATE,4000205268,33.60
Department for Education,DEPARTMENT FOR EDUCATION,15/04/2015,ICT,Regional School Commissioners Group,Telecoms facilities and services - mobiles and pagers,VODAFONE CORPORATE,4000205268,33.60
Department for Education,DEPARTMENT FOR EDUCATION,15/04/2015,ICT,Regional School Commissioners Group,Telecoms facilities and services - mobiles and pagers,VODAFONE CORPORATE,4000205268,33.60
Department for Education,DEPARTMENT FOR EDUCATION,15/04/2015,ICT,Private Office,Telecoms facilities and services - mobiles and pagers,VODAFONE CORPORATE,4000205268,33.60
Department for Education,DEPARTMENT FOR EDUCATION,15/04/2015,ICT,Education Funding Group,Telecoms facilities and services - mobiles and pagers,VODAFONE CORPORATE,4000205268,32.12
Department for Education,DEPARTMENT FOR EDUCATION,10/04/2015,Office Solutions,Communications Group,Office Supplies,JP MORGAN COMMERCIAL CARDS,4000204971,31.96
Department for Education,DEPARTMENT FOR EDUCATION,15/04/2015,ICT,Information Technology Group,Telecoms facilities and services - mobiles and pagers,VODAFONE CORPORATE,4000205268,31.20
Department for Education,DEPARTMENT FOR EDUCATION,10/04/2015,Print and Print Management,Strategic Analysis and Research and Policy Impact Group,Printing and binding services,JP MORGAN COMMERCIAL CARDS,4000204971,30.00
Department for Education,DEPARTMENT FOR EDUCATION,10/04/2015,ICT,Education Funding Group,ICT Services,JP MORGAN COMMERCIAL CARDS,4000204971,26.00
Department for Education,DEPARTMENT FOR EDUCATION,15/04/2015,ICT,Children's Services and Departmental Strategy Directorate Support,Telecoms facilities and services - mobiles and pagers,VODAFONE CORPORATE,4000205268,23.30
Department for Education,STANDARDS AND TESTING AGENCY,15/04/2015,ICT,Test Development Division,Telecoms facilities and services - mobiles and pagers,VODAFONE CORPORATE,4000205268,19.76
Department for Education,EDUCATION FUNDING AGENCY,15/04/2015,ICT,Education Funding Agency Admin,Telecoms facilities and services - mobiles and pagers,VODAFONE CORPORATE,4000205268,16.90
Department for Education,DEPARTMENT FOR EDUCATION,15/04/2015,ICT,Children in Care Division,Telecoms facilities and services - mobiles and pagers,VODAFONE CORPORATE,4000205268,16.80
Department for Education,DEPARTMENT FOR EDUCATION,15/04/2015,ICT,Education Funding Group,Telecoms facilities and services - mobiles and pagers,VODAFONE CORPORATE,4000205268,16.80
Department for Education,DEPARTMENT FOR EDUCATION,15/04/2015,ICT,System Reform Group,Telecoms facilities and services - mobiles and pagers,VODAFONE CORPORATE,4000205268,16.80
Department for Education,DEPARTMENT FOR EDUCATION,15/04/2015,ICT,Education Funding Group,Telecoms facilities and services - mobiles and pagers,VODAFONE CORPORATE,4000205268,16.80
Department for Education,DEPARTMENT FOR EDUCATION,15/04/2015,ICT,Regional School Commissioners Group,Telecoms facilities and services - mobiles and pagers,VODAFONE CORPORATE,4000205268,16.80
Department for Education,DEPARTMENT FOR EDUCATION,15/04/2015,ICT,Regional School Commissioners Group,Telecoms facilities and services - mobiles and pagers,VODAFONE CORPORATE,4000205268,16.80
Department for Education,DEPARTMENT FOR EDUCATION,15/04/2015,ICT,Private Office,Telecoms facilities and services - mobiles and pagers,VODAFONE CORPORATE,4000205268,16.80
Department for Education,STANDARDS AND TESTING AGENCY,15/04/2015,ICT,Standards and Testing Agency Admin,Telecoms facilities and services - mobiles and pagers,VODAFONE CORPORATE,4000205268,16.80
Department for Education,NATIONAL COLLEGE FOR TEACHING AND LEADERSHIP AGENCY,15/04/2015,ICT,Operations Directorate,Telecoms facilities and services - mobiles and pagers,VODAFONE CORPORATE,4000205268,16.80
Department for Education,EDUCATION FUNDING AGENCY,15/04/2015,ICT,Academies Group,Telecoms facilities and services - mobiles and pagers,VODAFONE CORPORATE,4000205268,16.80
Department for Education,DEPARTMENT FOR EDUCATION,10/04/2015,Office Solutions,Children in Care Division,Office Supplies,JP MORGAN COMMERCIAL CARDS,4000204971,15.00
Department for Education,DEPARTMENT FOR EDUCATION,15/04/2015,ICT,"Childcare, Special Educational Needs and Children's Strategy Group",Telecoms facilities and services - mobiles and pagers,VODAFONE CORPORATE,4000205268,14.40
Department for Education,DEPARTMENT FOR EDUCATION,10/04/2015,Office Solutions,"Strategy, Performance and Implementation Group",Office Supplies,JP MORGAN COMMERCIAL CARDS,4000204971,12.98
Department for Education,DEPARTMENT FOR EDUCATION,15/04/2015,ICT,Children's Services and Departmental Strategy Directorate Support,Telecoms facilities and services - mobiles and pagers,VODAFONE CORPORATE,4000205268,11.85
Department for Education,DEPARTMENT FOR EDUCATION,15/04/2015,ICT,Finance and Commercial Group - Property Asset Management,Telecoms facilities and services - mobiles and pagers,VODAFONE CORPORATE,4000205268,11.44
Department for Education,STANDARDS AND TESTING AGENCY,10/04/2015,ICT,Test Development Division,ICT Services,JP MORGAN COMMERCIAL CARDS,4000204971,7.99
Department for Education,DEPARTMENT FOR EDUCATION,10/04/2015,Office Solutions,Education Standards Directorate,Office Supplies,JP MORGAN COMMERCIAL CARDS,4000204971,6.60
Department for Education,DEPARTMENT FOR EDUCATION,15/04/2015,ICT,Families Group,Telecoms facilities and services - mobiles and pagers,VODAFONE CORPORATE,4000205268,6.50
Department for Education,STANDARDS AND TESTING AGENCY,15/04/2015,ICT,Test Operations Division,Telecoms facilities and services - mobiles and pagers,VODAFONE CORPORATE,4000205268,2.71
Department for Education,DEPARTMENT FOR EDUCATION,10/04/2015,Office Solutions,Finance and Commercial Group,Office Supplies,JP MORGAN COMMERCIAL CARDS,4000204971,-169.52
Department for Education,DEPARTMENT FOR EDUCATION,10/04/2015,Professional Services Consultancy and Contingent Labour,Education Funding Group,"Fees / expenses of professionals such as auditors, accountants, lawyers, etc. engaged to provide advice or opinion on how to affect something",JP MORGAN COMMERCIAL CARDS,4000204971,-176.40
Department for Education,STANDARDS AND TESTING AGENCY,29/04/2015,Print and Print Management,Test Operations Division,Secure printing,WILLIAMS LEA,4000206374,-14998.56
Department for Education,DEPARTMENT FOR EDUCATION,17/04/2015,Miscellaneous Expenditure,Finance and Commercial Group,Property claim paid out to an academy trust by Gallagher Bassett on behalf of the Department as part of the Department's Risk Protection Arrangement (RPA).,N/A � Risk Protection Arrangement (RPA) member,005921-000045-RB-01,45152.00
Department for Education,DEPARTMENT FOR EDUCATION,30/04/2015,Redactions,Various,"The total redacted transactions, including funding payment to Education Funding Agency. See Technical Notes for further information.",Various,Various,5568500594.11
